{"text_format":"1","workbook":"xlsx","n_sheets":5,"sheets":["Guidance - please read","CITY SLT Offers 22-23","UCL SLT Offers 22-23","City Placement Days sept 2021","Codes"],"not_rendered":{"charts":0,"images":2,"macros":1,"external_links":0,"defined_names":1,"comments":0,"pivot_tables":0},"unopened":[],"bounds":{"document_bytes":16777216,"sheet_cells":100000,"rows_first":2000,"rows_last":500,"rows_between":2000,"halvings":0,"cell_chars":16384,"cell_head_chars":4096},"cells_cut":0,"cells_raw":0,"read":"whole","date_system":"1900"}

{"sheet":"Guidance - please read","index":0,"n_rows":74,"n_cols":14,"rows_kept":74,"cut":false,"hidden":false,"merged":[[36,6,36,8],[36,0,36,1],[36,2,36,5],[9,0,9,4],[12,0,12,3],[13,0,13,3],[14,0,14,3],[16,0,16,3],[19,0,19,1],[20,0,26,3],[30,0,30,3],[31,0,31,3],[34,0,34,3],[12,6,12,10],[13,6,13,10],[14,6,14,10],[44,13,50,15],[37,13,43,15],[36,13,36,15],[36,9,36,10],[36,11,36,12],[44,9,50,10],[43,11,43,12],[61,6,66,8],[61,9,66,10],[61,11,66,12],[51,6,55,8],[51,9,55,10],[56,6,60,8],[56,9,60,10],[51,11,55,12],[56,11,60,12],[37,0,43,1],[37,2,43,5],[51,0,60,1],[37,6,37,8],[38,6,38,8],[39,6,39,8],[40,6,40,8],[41,6,41,8],[42,6,42,8],[43,6,43,8],[8,0,8,4],[5,0,5,4],[6,0,6,4],[7,0,7,4],[15,6,15,10],[67,11,67,12],[67,13,67,15],[67,0,67,1],[67,2,67,5],[67,9,67,10],[67,6,67,8],[61,13,66,15],[61,2,66,5],[61,0,66,1],[42,11,42,12],[51,13,60,15],[44,11,50,12],[44,0,50,1],[44,2,50,5],[44,6,50,8],[51,2,60,5],[37,9,43,10],[37,11,37,12],[38,11,38,12],[39,11,39,12],[40,11,40,12],[41,11,41,12]]}
["CITY & UCL 2022-23 SLT Placement Information "]
[]
["City's placement dates are on the yellow tab - please send completed offers to:",null,null,null,null,"clinicalplacements@city.ac.uk (Priya)"]
["UCL's placement dates are on the green tab - please send completed offers to: ",null,null,null,null,"slt-placements@ucl.ac.uk (Katie)"]
[]
["• We would be grateful if you could complete all fields in the offer template so we have the required information to allocate students. "]
["• Please kindly provide a minimum of 4 weeks notice if you are no longer able to provide the placement. "]
["• If you move to another organisation please kindly get in touch with contact details of a colleague we can liaise with to see if the offer can still go ahead."]
["• If there is a bank holiday when a student would usually attend placement then they will be expected to negotiate an alternative day with their Practice Educator to make up their hours."]
["• If you include details of multiple Practice Educators please confirm who will be the Lead & Supporting PE."]
[]
["City University Information - please note:",null,null,null,null,null,"UCL Information - please note:"]
["• Offers for summer block placements will need to be 3 days per week in order for students to complete total number of placement days required.",null,null,null,null,null,"• Please let us know of any changes to the offer (setting, location, Practice Educator) as soon as possible, as this can affect how students are allocated"]
["• If the Practice Educator(s) details change after a confirmation email has been sent to students please let us know as soon as possible so we can update records.",null,null,null,null,null,"• You can prioritise your offers - 1 indicates a priority offer, 2 indicates a non-priority offer. This will help us if we find ourselves with more offers than we can use from one service. "]
["• If you intend to make an offer for 1 student we would be grateful if you could please consider taking on a 2nd student so it is a paired placement. This is not a requirement just an ask for consideration, thank you.",null,null,null,null,null,"• Offers for Weekly placements, please sepcify which day you are offering when you submit the offer"]
["• MSc1 & BSc2 students are required to make a clinical video for assessment. All other year groups are assessed on competency skills of pass or fail.",null,null,null,null,null,"• Offers for Spring blocks must be full time offers, with a four day a week minimum. The students need to attend for 20 days over five weeks, with at least a one week break for revision study. Time lost to Bank Holidays will need to be made up. Students can attend flexibly and there rae options around working from home and prcatise nbased learning tasksr "]
["• Offers for two-term blocks must be made for both terms please."]
[]
[]
["Pre-requisites of taking a student on placement:"]
["•Must have practiced for over a year.\n•\tBand 5/6. Must have passed competencies skills. If Band 5 and have not completed all competencies skills, then Band 6 can be the lead supervisor taking on students on placement and Band 5 can be a supporting PE.\n•\tMust have or can complete Practice Educator training in the last three years prior to taking on students for placements. (PE training is valid for 3 years)."]
[]
[]
[]
[]
[]
[]
[]
[]
["2022-23 SLT Training, Workshops & Meetings"]
["•All Speech and Language Therapy training sessions are jointly run by City, University of London (CUoL) and University College London (UCL)."]
["•Please note that all Practice Educators should complete Initial Practice Educator Training before taking students on placement. This training is to support new Practice Educators in developing the skills and knowledge required to educate student speech and language therapists on placement.\n\nDetails of the Initial Practice Educator Training sessions can be viewed below.\nSessions are planned to be half day, live and online via Zoom. These sessions will satisfy the requirements for PE supervision and are appropriate for individuals requiring initial PE training or refresher training.\n\nPlease note that bookings for the training days can only be made via links below. These will be 3.5 hour interactive virtual sessions."]
["Click here for further information"]
[]
["Practice Educators are required to update their training every 3 years. This can be achieved via any of the 4 options below:"]
[]
["Session",null,"Information",null,null,null,"Dates/Times",null,null,"Location",null,"Booking Link",null,"Additional Info"]
["Reattending the Initial Practice Educator Training\n",null,"Please select your preferred date from the list and register via the booking link. \nOnce you have attended PE training, please complete the online survey as we require this information as part of HCPC.",null,null,null,"Wednesday 21 September 2022: 10.00 - 13.30",null,null,"Currently planned online via Zoom",null,"Book here",null,"Practice Educator Training Survey"]
[null,null,null,null,null,null,"Wednesday 28 September 2022: 13.30 - 17.00",null,null,null,null,"Book here"]
[null,null,null,null,null,null,"Wednesday 14 Dececember 2022: 10.00 - 13.30",null,null,null,null,"Book here"]
[null,null,null,null,null,null,"Tuesday 17th January 2023: 10.00 - 13.30",null,null,null,null,"Book here"]
[null,null,null,null,null,null,"Tuesday 31st January 2023: 13.30 - 17.00",null,null,null,null,"Book here"]
[null,null,null,null,null,null,"Tuesday 14th March 2023: 10.00 - 13.30",null,null,null,null,"Book here"]
[null,null,null,null,null,null,"Tuessday 21st March 2023: 13.30 - 17.00",null,null,null,null,"Book here"]
["Completing the Refresher Practice Educator Webcast Training",null,"There is a webcast training video that will satisfy the requirements to supervise a student.\nIt is self study and can be completed in your own time and will take approximately 30 minutes to complete.\nOnce you have attended completed the webcast training video, please complete the online survey as we require this information as part of HCPC.",null,null,null,"Webcast video training can be completed in your own time.\nPlease note: If you are accessing the training video via NHS server the firewall may block the training video. Please use a different browser to access the training video or open link via non NHS server. ",null,null,"Online ",null,"Access the training video",null,"Practice Educator Training Survey-Webcast training video "]
[]
[]
[]
[]
[]
[]
["Placements Coordinators Network (PCN) Meetings",null,"We welcome SLT Placement Coordinators to join us for a networking event to:\n• receive updates about the universities’ clinical placements programmes.\n• receive a summary of students’ feedback on placements.\n• provide the universities with feedback about service-specific issues.\n• discuss and problem-solve placements issues with SLT colleagues from other services.\n•discuss and problem-solve placements issues with SLT colleagues from other services.\nAttendance at PCN also counts towards update training, (but only accessible to placement coordinators).\nThese meetings are held twice a year.\nOnce you have attended PCN, please complete the online survey as we require this information as part of HCPC.",null,null,null,"Tuesday 15th Nov 2022: 14.30-16.00",null,null,"Currently planned online via Zoom",null,"katie.kay@ucl.ac.uk",null,"Placements Coordinators Network (PCN) Meeting Survey"]
[]
[]
[]
[]
[null,null,null,null,null,null,"Wednesday 24 May 2023: 10.00-12.00 (followed by APEW)",null,null,"May be held as a live meeting at UCL or virtually (TBC)",null,"katie.kay@ucl.ac.uk"]
[]
[]
[]
[]
["Annual Practice Educator Workshop (APEW)",null,"All practice educators are invited to the Annual Practice Educators’ Workshop (APEW). The APEW provides an opportunity for practice educators to share good and innovative practice with their peers.  \nAttendance at APEW also counts towards update training.\nOnce you have attended APEW, please complete the online survey as we require this information as part of HCPC.",null,null,null,"Wednesday  24 May 2023, 13.00-16.30 (if held as a live event at UCL) or 13.00-15.00 if held virtually",null,null,"May be held as a live meeting at UCL or virtually (TBC)",null," katie.kay@ucl.ac.uk",null,"Annual Practice Educator Workshop (APEW) Survey"]
[]
[]
[]
[]
[]
["Practice Educator Training Workshop ",null,"We are also able to come to your place of work to provide either initial or bespoke advanced practice educator training sessions for a whole team. We request that there be a minimum of 20 participants for us to do this. Please contact us if you would like us to run a session at your place of work.\nOnce you have attended Practice Educator workshop , please complete the online survey as we require this information as part of HCPC.",null,null,null,"Dates/Time to be agreed by both parites. ",null,null,"TBC ",null,"\nPriya Patel- clinicalplacements@city.ac.uk\n\n& \n\nKatie Kay- \nkatie.kay@ucl.ac.uk\n\t\n\t\n\t\n\t",null,"Practice Educator Training Workshop Survey"]
[]
[]
[]
[]
["For Information "]
["Mailing List - Please scan the QR code to be added, updated or removed from our mailing list for placement informaton. ",null,null,null,"PE Training- Please scan the QR code to record your PE training has been completed "]

{"sheet":"CITY SLT Offers 22-23","index":1,"n_rows":20,"n_cols":24,"rows_kept":20,"cut":false,"hidden":false,"merged":[[2,9,2,23],[2,0,2,8],[17,0,17,8]]}
["CITY SLT PLACEMENT OFFERS 2022-23"]
["No. of Students","REF","Year Group ","HEI","Term ","Total no. of days","Start Date","End Date","Placement Information (dates & days)","Placement Type (e.g. face-to-face/ remote)\nselect from list","Offer Quantity i.e 1 student/ pair","Day(s) offered\nselect from drop down or add text if you need to include additional information","Placement Provider Name\nNHS providers: start typing in drop down box and select from list\n\nIndependent providers: double click in box and enter organisation name","Placement Provider \nSite / Clinic / Team ","Placement location(s)\nincluding postcodes","Practice Educator(s) - name & contact number","Practice Educator(s) - email","Practice Educator(s) HCPC License Number(s)","Have the PEs attended PE training in the last three years? \nIf yes - what month & year?","Placement coordinator name and email (if relevant)","Client group (i.e. Children and adolescents/ ALD/ Adult / Elderly)","Setting type (i.e. Community/ Mental Health/ Hospital/ Acute/ Inpatients/Outpatients/ Schools/ Clinic/ Day Centre)","Additional info to be considered by the HEI or shared with the student(s) (i.e. Uniform required/ travelling required/ own transport desirable/ BSL required, etc)","How much of this placement will involve work EDS (Eating, drinking and swallowing)?  Please indicate: A lot/Some/None"]
["If you are offering a different start or end date than stated below, please update columns F&G & put the date in red - thank you",null,null,null,null,null,null,null,null,"Please complete columns J - X                                                       Please complete columns J - X                                                           Please complete columns J - X                                               Please complete columns J - X                                                       Please complete columns J - X                                                                     Please complete columns J - X"]
[]
["Undergraduate Placement Offers 2022-23 (City)"]
[null,"B1A Example","BSc Year 1","CITY","Summer 2023",15,"22 May 2023","30 Jun 2023","Summer term (any client group) - Ref B1A\n\n22 May – 30 Jun\ntotal 15 days within the 6 week block\n(not Tuesdays)","Mixed (remote & face to face)",2,"Mondays, Wednesdays, Fridays ","Example Speech & Lanugage Service","Schools & Early Years Team","1 Myddelton St, London EC1R 1UB","Joe Bloggs\n0207 444 0076","Joe.Bloggs@example.ac.uk","\nSL21921","03.06.21","John Foggs\njohn.foggs@example.ac.uk","Mainstream Pimary ","School ","Mainstream school- student will be working with school age children between 13-16 years that have rang of SLCN e.g. ASD, DLD, speech, stammering, selective mutism etc.  Travel between school and clinic requires a car (or car sharing), some schools are not close to public transport links. Students must have British sign language level 1.  ","None"]
[49,"B3A","BSc Year 3","CITY","two-term: Autumn 2022 & Spring 2023",19,"17 Oct 2022\n\n30 Jan 2023","16 Dec 2022\n\n14 Apr 2023","two-term (any client group) - Ref B3A\n\n•  Autumn: 17 October  – 16 December\ntotal 9 days within the 9 week block\n(student availability: Mondays or Fridays)\n\nthen\n\n•  Spring: 30 January – 14 April\ntotal 10 days within the 11 week block\n(student availability: Mondays or Fridays)"]
[68,"B2A","BSc Year 2","CITY","two-term: Autumn 2022 & Spring 2023",19,"17 Oct 2022\n\n30 Jan 2023","16 Dec 2022\n\n14 Apr 2023","two-term (any client group) - Ref B2A\n\n•  Autumn: 17 October  – 16 December\ntotal 9 days within the 9 week block\n(student availability: Tuesdays or Wednesdays)\n\nthen\n\n•  Spring: 30 January – 14 April\ntotal 10 days within the 11 week block\n(student availability: Tuesdays or Wednesdays)"]
[66,"B1A","BSc Year 1","CITY","Summer 2023",15,"22 May 2023","30 Jun 2023","Summer term (any client group) - Ref B1A\n\n22 May – 30 June\ntotal 15 days within the 6 week block\n(not Tuesdays)\nIdeally students would be on placement 3 days p/week but this can be flexible"]
[68,"B2B","BSc Year 2","CITY","Summer 2023",16,"22 May 2023","30 Jun 2023","Summer term (any client group) - Ref B2B\n\n22 May – 30 June\ntotal 16 days within the 6 week block\n(not Mondays)\nIdeally students would be on placement 3 days p/week but this can be flexible"]
[49,"B3B","BSc Year 3","CITY","Summer 2023",16,"22 May 2023","30 Jun 2023","Summer term (any client group) - Ref B3B\n\n22 May – 30 June\ntotal 16 days within the 6 week block\n(not Wednesdays)\nIdeally students would be on placement 3 days p/week but this can be flexible"]
[]
["Postgraduate Placement Offers 2022-23 (City)"]
[null,"M2A- Example ","MSc Year 2","CITY","Summer 2023",24,"29 May 2023","21 Jul 2022","Summer term (any client group) - Ref M2B\n\n29 May – 21 July\ntotal 24 days within the 8 week block\n(not Tuesdays)","Face to Face ",2,"Mondays, Wednesday, Thursday and Fridays","Example Speech & Lanugage Service","Adult Community Team","1 Myddelton St, London EC1R 1UB","Joe Bloggs\n0207 444 0076","Joe.Bloggs@example.ac.uk","\nSL21921","03.06.21","John Foggs\njohn.foggs@example.ac.uk","Adult Placement ","outpaitent service ","\nOutpatient service on stroke clinic. Student will be working stroke patients that communication and swallowing difficulties post stroke.  Any prior experience in these areas would be desirable. Student must be resilient and to be able to work independently on caseload and report writing. ","Yes - some dysphagia"]
[109,"M2A","MSc Year 2","CITY","two-term: Autumn 2022 & Spring 2023",21,"10 Oct 2022\n\n23 Jan 2023","16 Dec 2022\n\n14 Apr 2023","two-term (any client group) - Ref M2A \n\n•  Autumn: 10 October – 16 December \ntotal 10 days within the 10 week block\n(student availability: Mondays or Fridays)\n\nthen\n\n•  Spring: 23 January – 14 April\ntotal 11 days within the 12 week block\n(student availability: Mondays or Fridays)"]
[110,"M1A","MSc Year 1","CITY","two-term: Spring & Summer 2023",36,"23 Jan 2023\n\n29 May 2023","14 Apr 2023\n\n14 Jul 2023","two-term (any client group) - Ref M1A \n\n•  Spring: 23 January – 14 April\ntotal 15 days within the 12 week block\n(student availability: Tuesdays or Wednesdays)\n\nthen\n\n•  Summer: 29 May – 14 July\ntotal 21 days within the 7 week block\n(not Mondays)\nIdeally students would be on placement 3 days p/week but this can be flexible"]
[109,"M2B","MSc Year 2","CITY","Summer 2023",24,"29 May 2023","21 Jul 2023","Summer term (any client group) - Ref M2B\n\n29 May – 21 July\ntotal 24 days within the 8 week block\n(not Tuesdays)\nIdeally students would be on placement 3 days p/week but this can be flexible"]
["MSLT are BSc students who have opted to take a 4th year in order to obtain a Masters qualification:"]
[6,"MSLT\nA","MSLT","CITY","Autumn 2022",10,"10 Oct 2022","16 Dec 2022","Autumn term - Ref MSLTA\n\n10 Oct – 16 Dec\ntotal 10 days within the 10 week block\n(student availability: Tuesdays or Thursdays)"]
[6,"MSLT\nB","MSLT","CITY","two-term: Spring & Summer 2023",20,"23 Jan 2023\n\n22 May 2023","14 Apr 2023\n\n30 Jun 2023","two-term Ref MSLTB\n\n•  Spring: 23 January – 14 April\ntotal 10 days within the 12 week block\n(student availability: Tuesdays or Thursdays)\n\nthen\n\n•  Summer: 22 May – 30 June - MSLT & B1A student (joint)\ntotal 10 days within the 6 week block\n(student availability: Mondays and Thursdays; Not Tuesdays to overlap with BSc1))\n\nFor summer block the MSLT student must supervise a B1A (BSc1) student so you will need to make a joint offer for MSLTB & B1A from 22 May - 30 June please. Scroll up and refer to B1A row for further details"]

{"sheet":"UCL SLT Offers 22-23","index":2,"n_rows":9,"n_cols":27,"rows_kept":9,"cut":false,"hidden":false,"merged":[]}
["UCL SLT PLACEMENT OFFERS 2022-23"]
["No. of Students","REF","Year Group ","HEI","Term ","Total no. of days","Requested client group","Start Date","End Date","Placement Information (dates & days)","One or two-term placement","Offer Quantity (i.e 1 student / pair)","Offer priority  ( 1=priority, 2 =non-priority)","Day(s) offered ","Placement Provider Name\n","Placement Provider \nSite / Clinic / Team ","Placement location(s)\nincluding postcodes","Practice Educator(s) - name ","Lead Practice Educator(s) - contact number","Lead Practice Educator(s) - email","Practice Educator(s) HCPC License Number(s)","Have the PEs attended PE training in the last three years? \nIf yes - what month & year?","Placement coordinator name and email (if relevant)","Client group (i.e. Children and adolescents/ALD/Adult /Elderly)","Setting type (i.e. Community/Mental Health/Hospital/Acute/Inpatients/Outpatients/Schools/Clinic)","Additional info to be considered by the HEI or shared with the student(s) (i.e. Uniform required/ travelling required/ own transport desirable/ BSL required, etc)","How much of this placement will involve work EDS (Eating, drinking and swallowing)?  Please indicate: A lot/Some/None"]
[]
["Postgraduate Placement Offers 2022-23 (UCL)"]
[64,"12W","MScA","UCL","two-term: Autumn 2022 & Spring 2023",17,"Paediatric","Tuesday: 8 November        Friday: 11 November","Tuesday: 14 March        Friday: 17 March","MScA Ongoing - weekly over 2 terms         Tuesday or Friday from 8 November to 17 March with holiday from 16 December to 10 Janaury\n\n\nTuesday placements from 8 November to 13 December, then from 10 January to 14 March\n\n\nFriday placements from 11 November to 16 December, then from 13 January to 17 March   ","Two term",null,null,"Please specify: Tuesday / Friday"]
[60,"22W","MScB","UCL","two-term: Autumn 2022 & Spring 2023",19,"Adult acquired disorders/ENT/Voice","Monday: 17 October        Thursday: 20 October","Monday: 13 March        Thursday: 16 March","MScBA Ongoing - weekly over 2 terms         Monday or Thursday from  from 17 October to 16 March with holiday from 15 December to 9 January\n\n\nMonday placements from 17 October to 12 December, then from 9 January to 13 March\n\n\nThursday placements from 20 October to 15 December, then from 12 January to 16 March   ","Two term",null,null,"Please specify: Monday/Thursday"]
[64,"12Spr","MScA","UCL","Spring term 23",20,"Paediatric/ALD","2023-03-27","2023-05-12","Ref MScA Spring block: 5 weeks (20 days) within the period 27/03/23 - 12/05/23","One term - SPRING",null,null,"Please specify block dates       4-5 days pw, M, T, W, Th & F"]
[60,"22Spr","MScB","UCL","Spring term 23",20,"Adult acquired disorders/ENT/Voice","2023-03-27","2023-05-12","Ref MScB Spring block: 5 weeks (20 days) within the period 27/03/22 - 12/05/22","One term - SPRING",null,null,"Please specify block dates       4-5 days pw, M, T, W, Th & F"]
[64,"12Sum","MScA","UCL","Summer 23",10,"Any setting","2023-07-03","2023-07-11","Ref MScA Summer block - block: 8 days within the period 03/07/23 - 11/08/23","One term -  SUMMER",null,null,"Please specify block dates       4-5 days pw, M, T, W, Th & F"]

{"sheet":"City Placement Days sept 2021","index":3,"n_rows":12,"n_cols":10,"rows_kept":12,"cut":false,"hidden":true,"merged":[]}
["B3A","B2A","B1A","B2B","B3B","M2A","M1A","M2B","MSLT A","MSLTB"]
["Autumn AND Spring - Monday","Autumn AND Spring - Tuesday","Monday, Wednesday, Thursday","Tuesday, Wednesday, Thursday","Monday, Tuesday, Thursday","Autumn AND Spring - Monday","Spring - Tuesday + 3x Wednesdays AND Summer -  Tuesday, Wednesday, Thursday","Monday, Wednesday, Thursday ","Wednesday"]
["Autumn AND Spring - Friday","Autumn AND Spring - Wednesday","Monday, Wednesday, Friday","Tuesday, Wednesday, Friday","Monday, Tuesday, Friday","Autumn AND Spring - Friday","Spring - Tuesday + 3x Wednesdays AND Summer -  Tuesday, Wednesday, Friday","Monday, Wednesday, Friday","Thursday"]
["Autumn - Monday AND Spring - Friday","Autumn - Tuesday AND Spring - Wednesday","Monday, Thursday, Friday","Tuesday, Thursday, Friday","Monday, Thursday, Friday","Autumn - Monday AND Spring - Friday","Spring - Tuesday + 3x Wednesdays AND Summer -  Tuesday, Thursday, Friday","Monday, Thursday, Friday"]
["Autumn - Friday AND Spring - Monday","Autumn - Wednesday AND Spring - Tuesday","Wednesday, Thursday, Friday","Wednesday, Thursday, Friday","Tuesday, Thursday, Friday","Autumn - Friday AND Spring - Monday","Spring - Tuesday + 3x Wednesdays AND Summer -  Wednesday, Thursday, Friday","Wednesday, Thursday, Friday"]
[null,null,"Monday, Wednesday, Thursday, Friday","Tuesday, Wednesday, Thursday, Friday","Monday, Tuesday, Thursday, Friday",null,"Spring - Tuesday + 3x Wednesdays AND Summer -  Tuesday, Wednesday, Thursday, Friday","Monday, Wednesday, Thursday, Fridays"]
[null,null,null,null,null,null,"Spring - Wednesday + 3x Tuesdays AND Summer -  Tuesday, Wednesday, Thursday"]
[null,null,"Key ",null,null,null,"Spring - Wednesday + 3x Tuesdays AND Summer -  Tuesday, Wednesday, Friday"]
[null,null,"Autumn and Spring ",null,null,null,"Spring - Wednesday + 3x Tuesdays AND Summer -  Tuesday, Thursday, Friday"]
[null,null,"Summer ",null,null,null,"Spring - Wednesday + 3x Tuesdays AND Summer -  Wednesday, Thursday, Friday"]
[null,null,"Spring & Summer ",null,null,null,"Spring - Wednesday + 3x Tuesdays AND Summer -  Tuesday, Wednesday, Thursday, Friday"]
[null,null,"MSLT: Spring & Summer "]

{"sheet":"Codes","index":4,"n_rows":381,"n_cols":21,"rows_kept":381,"cut":false,"hidden":true,"merged":[]}
["Term",null,"Type of placement",null,null,null,"PE training",null,"NHS Org","IF Found","Frequency","Searchable List",null,null,null,"",null,null,null,null,"EDS"]
["Two term",null,"Face to face ",null,null,null,"Yes",null,"Airedale NHS Foundation Trust",{"$f":"--ISNUMBER(SEARCH($P$1,I2))","v":1},{"$f":"IF(J2=1,COUNTIF($J$2:$J2,1),\"\")","v":1},{"$f":"IFERROR(INDEX($I$2:$I$381,MATCH(ROWS($K$2:$K2),$K$2:$K$381,0)),\"\")","v":"Airedale NHS Foundation Trust"},null,null,null,null,null,null,null,null,"Yes - lots of dysphagia"]
["One term - AUTUMN",null,"Remote",null,null,null,"No",null,"Alder Hey Children's NHS Foundation Trust",{"$f":"--ISNUMBER(SEARCH($P$1,I3))","v":1},{"$f":"IF(J3=1,COUNTIF($J$2:$J3,1),\"\")","v":2},{"$f":"IFERROR(INDEX($I$2:$I$381,MATCH(ROWS($K$2:$K3),$K$2:$K$381,0)),\"\")","v":"Alder Hey Children's NHS Foundation Trust"},null,null,null,null,null,null,null,null,"Yes - some dysphagia"]
["One term - SPRING",null,"Mixed (remote & face to face)",null,null,null,null,null,"Ashford and St Peter's Hospitals NHS Foundation Trust",1,{"$f":"IF(J4=1,COUNTIF($J$2:$J4,1),\"\")","v":3},{"$f":"IFERROR(INDEX($I$2:$I$381,MATCH(ROWS($K$2:$K4),$K$2:$K$381,0)),\"\")","v":"Ashford and St Peter's Hospitals NHS Foundation Trust"},null,null,null,null,null,null,null,null,"None"]
["One term -  SUMMER",null,"Remote OR face to face",null,null,null,null,null,"Avon and Wiltshire Mental Health Partnership NHS Trust",1,{"$f":"IF(J5=1,COUNTIF($J$2:$J5,1),\"\")","v":4},{"$f":"IFERROR(INDEX($I$2:$I$381,MATCH(ROWS($K$2:$K5),$K$2:$K$381,0)),\"\")","v":"Avon and Wiltshire Mental Health Partnership NHS Trust"}]
[null,null,null,null,null,null,null,null,"Barking, Havering and Redbridge University Hospitals NHS Trust",1,{"$f":"IF(J6=1,COUNTIF($J$2:$J6,1),\"\")","v":5},{"$f":"IFERROR(INDEX($I$2:$I$381,MATCH(ROWS($K$2:$K6),$K$2:$K$381,0)),\"\")","v":"Barking, Havering and Redbridge University Hospitals NHS Trust"}]
[null,null,null,null,null,null,null,null,"Barnet, Enfield and Haringey Mental Health NHS Trust",1,{"$f":"IF(J7=1,COUNTIF($J$2:$J7,1),\"\")","v":6},{"$f":"IFERROR(INDEX($I$2:$I$381,MATCH(ROWS($K$2:$K7),$K$2:$K$381,0)),\"\")","v":"Barnet, Enfield and Haringey Mental Health NHS Trust"}]
["Two term",null,null,null,null,null,null,null,"Barnsley Hospital NHS Foundation Trust",1,{"$f":"IF(J8=1,COUNTIF($J$2:$J8,1),\"\")","v":7},{"$f":"IFERROR(INDEX($I$2:$I$381,MATCH(ROWS($K$2:$K8),$K$2:$K$381,0)),\"\")","v":"Barnsley Hospital NHS Foundation Trust"}]
["One term - SPRING",null,null,null,null,null,null,null,"Barts Health NHS Trust",1,{"$f":"IF(J9=1,COUNTIF($J$2:$J9,1),\"\")","v":8},{"$f":"IFERROR(INDEX($I$2:$I$381,MATCH(ROWS($K$2:$K9),$K$2:$K$381,0)),\"\")","v":"Barts Health NHS Trust"}]
["One term -  SUMMER",null,null,null,null,null,null,null,"Bedford Hospital NHS Trust",1,{"$f":"IF(J10=1,COUNTIF($J$2:$J10,1),\"\")","v":9},{"$f":"IFERROR(INDEX($I$2:$I$381,MATCH(ROWS($K$2:$K10),$K$2:$K$381,0)),\"\")","v":"Bedford Hospital NHS Trust"}]
[null,null,null,null,null,null,null,null,"BEDFORDSHIRE HOSPITALS NHS FOUNDATION TRUST",1,{"$f":"IF(J11=1,COUNTIF($J$2:$J11,1),\"\")","v":10},{"$f":"IFERROR(INDEX($I$2:$I$381,MATCH(ROWS($K$2:$K11),$K$2:$K$381,0)),\"\")","v":"BEDFORDSHIRE HOSPITALS NHS FOUNDATION TRUST"}]
[null,null,null,null,null,null,null,null,"Berkshire Healthcare NHS Foundation Trust",1,{"$f":"IF(J12=1,COUNTIF($J$2:$J12,1),\"\")","v":11},{"$f":"IFERROR(INDEX($I$2:$I$381,MATCH(ROWS($K$2:$K12),$K$2:$K$381,0)),\"\")","v":"Berkshire Healthcare NHS Foundation Trust"}]
[null,null,null,null,null,null,null,null,"Birmingham and Solihull Mental Health NHS Foundation Trust",1,{"$f":"IF(J13=1,COUNTIF($J$2:$J13,1),\"\")","v":12},{"$f":"IFERROR(INDEX($I$2:$I$381,MATCH(ROWS($K$2:$K13),$K$2:$K$381,0)),\"\")","v":"Birmingham and Solihull Mental Health NHS Foundation Trust"}]
[null,null,null,null,null,null,null,null,"Birmingham Community Healthcare NHS Foundation Trust",1,{"$f":"IF(J14=1,COUNTIF($J$2:$J14,1),\"\")","v":13},{"$f":"IFERROR(INDEX($I$2:$I$381,MATCH(ROWS($K$2:$K14),$K$2:$K$381,0)),\"\")","v":"Birmingham Community Healthcare NHS Foundation Trust"}]
[null,null,null,null,null,null,null,null,"Birmingham Women's and Children's NHS Foundation Trust",1,{"$f":"IF(J15=1,COUNTIF($J$2:$J15,1),\"\")","v":14},{"$f":"IFERROR(INDEX($I$2:$I$381,MATCH(ROWS($K$2:$K15),$K$2:$K$381,0)),\"\")","v":"Birmingham Women's and Children's NHS Foundation Trust"}]
[null,null,null,null,null,null,null,null,"Black Country Healthcare NHS Foundation Trust",1,{"$f":"IF(J16=1,COUNTIF($J$2:$J16,1),\"\")","v":15},{"$f":"IFERROR(INDEX($I$2:$I$381,MATCH(ROWS($K$2:$K16),$K$2:$K$381,0)),\"\")","v":"Black Country Healthcare NHS Foundation Trust"}]
[null,null,null,null,null,null,null,null,"Blackpool Teaching Hospitals NHS Foundation Trust",1,{"$f":"IF(J17=1,COUNTIF($J$2:$J17,1),\"\")","v":16},{"$f":"IFERROR(INDEX($I$2:$I$381,MATCH(ROWS($K$2:$K17),$K$2:$K$381,0)),\"\")","v":"Blackpool Teaching Hospitals NHS Foundation Trust"}]
[null,null,null,null,null,null,null,null,"Bolton NHS Foundation Trust",1,{"$f":"IF(J18=1,COUNTIF($J$2:$J18,1),\"\")","v":17},{"$f":"IFERROR(INDEX($I$2:$I$381,MATCH(ROWS($K$2:$K18),$K$2:$K$381,0)),\"\")","v":"Bolton NHS Foundation Trust"}]
[null,null,null,null,null,null,null,null,"Bradford District NHS Foundation Trust",1,{"$f":"IF(J19=1,COUNTIF($J$2:$J19,1),\"\")","v":18},{"$f":"IFERROR(INDEX($I$2:$I$381,MATCH(ROWS($K$2:$K19),$K$2:$K$381,0)),\"\")","v":"Bradford District NHS Foundation Trust"}]
[null,null,null,null,null,null,null,null,"Bradford Teaching Hospitals NHS Foundation Trust",1,{"$f":"IF(J20=1,COUNTIF($J$2:$J20,1),\"\")","v":19},{"$f":"IFERROR(INDEX($I$2:$I$381,MATCH(ROWS($K$2:$K20),$K$2:$K$381,0)),\"\")","v":"Bradford Teaching Hospitals NHS Foundation Trust"}]
[null,null,null,null,null,null,null,null,"Bridgewater Community Healthcare NHS Foundation Trust",1,{"$f":"IF(J21=1,COUNTIF($J$2:$J21,1),\"\")","v":20},{"$f":"IFERROR(INDEX($I$2:$I$381,MATCH(ROWS($K$2:$K21),$K$2:$K$381,0)),\"\")","v":"Bridgewater Community Healthcare NHS Foundation Trust"}]
[null,null,null,null,null,null,null,null,"Brighton and Sussex University Hospitals NHS Trust",1,{"$f":"IF(J22=1,COUNTIF($J$2:$J22,1),\"\")","v":21},{"$f":"IFERROR(INDEX($I$2:$I$381,MATCH(ROWS($K$2:$K22),$K$2:$K$381,0)),\"\")","v":"Brighton and Sussex University Hospitals NHS Trust"}]
[null,null,null,null,null,null,null,null,"Buckinghamshire Healthcare NHS Trust",1,{"$f":"IF(J23=1,COUNTIF($J$2:$J23,1),\"\")","v":22},{"$f":"IFERROR(INDEX($I$2:$I$381,MATCH(ROWS($K$2:$K23),$K$2:$K$381,0)),\"\")","v":"Buckinghamshire Healthcare NHS Trust"}]
[null,null,null,null,null,null,null,null,"Burton Hospitals NHS Foundation Trust",1,{"$f":"IF(J24=1,COUNTIF($J$2:$J24,1),\"\")","v":23},{"$f":"IFERROR(INDEX($I$2:$I$381,MATCH(ROWS($K$2:$K24),$K$2:$K$381,0)),\"\")","v":"Burton Hospitals NHS Foundation Trust"}]
[null,null,null,null,null,null,null,null,"Calderdale and Huddersfield NHS Foundation Trust",1,{"$f":"IF(J25=1,COUNTIF($J$2:$J25,1),\"\")","v":24},{"$f":"IFERROR(INDEX($I$2:$I$381,MATCH(ROWS($K$2:$K25),$K$2:$K$381,0)),\"\")","v":"Calderdale and Huddersfield NHS Foundation Trust"}]
[null,null,null,null,null,null,null,null,"Cambridge University Hospitals NHS Foundation Trust",1,{"$f":"IF(J26=1,COUNTIF($J$2:$J26,1),\"\")","v":25},{"$f":"IFERROR(INDEX($I$2:$I$381,MATCH(ROWS($K$2:$K26),$K$2:$K$381,0)),\"\")","v":"Cambridge University Hospitals NHS Foundation Trust"}]
[null,null,null,null,null,null,null,null,"Cambridgeshire and Peterborough NHS Foundation Trust",1,{"$f":"IF(J27=1,COUNTIF($J$2:$J27,1),\"\")","v":26},{"$f":"IFERROR(INDEX($I$2:$I$381,MATCH(ROWS($K$2:$K27),$K$2:$K$381,0)),\"\")","v":"Cambridgeshire and Peterborough NHS Foundation Trust"}]
[null,null,null,null,null,null,null,null,"Cambridgeshire Community Services NHS Trust",1,{"$f":"IF(J28=1,COUNTIF($J$2:$J28,1),\"\")","v":27},{"$f":"IFERROR(INDEX($I$2:$I$381,MATCH(ROWS($K$2:$K28),$K$2:$K$381,0)),\"\")","v":"Cambridgeshire Community Services NHS Trust"}]
[null,null,null,null,null,null,null,null,"Camden and Islington NHS Foundation Trust",1,{"$f":"IF(J29=1,COUNTIF($J$2:$J29,1),\"\")","v":28},{"$f":"IFERROR(INDEX($I$2:$I$381,MATCH(ROWS($K$2:$K29),$K$2:$K$381,0)),\"\")","v":"Camden and Islington NHS Foundation Trust"}]
[null,null,null,null,null,null,null,null,"Central and North West London NHS Foundation Trust",1,{"$f":"IF(J30=1,COUNTIF($J$2:$J30,1),\"\")","v":29},{"$f":"IFERROR(INDEX($I$2:$I$381,MATCH(ROWS($K$2:$K30),$K$2:$K$381,0)),\"\")","v":"Central and North West London NHS Foundation Trust"}]
[null,null,null,null,null,null,null,null,"Central London Community Healthcare NHS Trust",1,{"$f":"IF(J31=1,COUNTIF($J$2:$J31,1),\"\")","v":30},{"$f":"IFERROR(INDEX($I$2:$I$381,MATCH(ROWS($K$2:$K31),$K$2:$K$381,0)),\"\")","v":"Central London Community Healthcare NHS Trust"}]
[null,null,null,null,null,null,null,null,"Chelsea and Westminster Hospital NHS Foundation Trust",1,{"$f":"IF(J32=1,COUNTIF($J$2:$J32,1),\"\")","v":31},{"$f":"IFERROR(INDEX($I$2:$I$381,MATCH(ROWS($K$2:$K32),$K$2:$K$381,0)),\"\")","v":"Chelsea and Westminster Hospital NHS Foundation Trust"}]
[null,null,null,null,null,null,null,null,"Cheshire and Wirral Partnership NHS Foundation Trust",1,{"$f":"IF(J33=1,COUNTIF($J$2:$J33,1),\"\")","v":32},{"$f":"IFERROR(INDEX($I$2:$I$381,MATCH(ROWS($K$2:$K33),$K$2:$K$381,0)),\"\")","v":"Cheshire and Wirral Partnership NHS Foundation Trust"}]
[null,null,null,null,null,null,null,null,"Chesterfield Royal Hospital NHS Foundation Trust",1,{"$f":"IF(J34=1,COUNTIF($J$2:$J34,1),\"\")","v":33},{"$f":"IFERROR(INDEX($I$2:$I$381,MATCH(ROWS($K$2:$K34),$K$2:$K$381,0)),\"\")","v":"Chesterfield Royal Hospital NHS Foundation Trust"}]
[null,null,null,null,null,null,null,null,"City Hospitals Sunderland NHS Foundation Trust",1,{"$f":"IF(J35=1,COUNTIF($J$2:$J35,1),\"\")","v":34},{"$f":"IFERROR(INDEX($I$2:$I$381,MATCH(ROWS($K$2:$K35),$K$2:$K$381,0)),\"\")","v":"City Hospitals Sunderland NHS Foundation Trust"}]
[null,null,null,null,null,null,null,null,"Cornwall Partnership NHS Foundation Trust",1,{"$f":"IF(J36=1,COUNTIF($J$2:$J36,1),\"\")","v":35},{"$f":"IFERROR(INDEX($I$2:$I$381,MATCH(ROWS($K$2:$K36),$K$2:$K$381,0)),\"\")","v":"Cornwall Partnership NHS Foundation Trust"}]
[null,null,null,null,null,null,null,null,"Countess Of Chester Hospital NHS Foundation Trust",1,{"$f":"IF(J37=1,COUNTIF($J$2:$J37,1),\"\")","v":36},{"$f":"IFERROR(INDEX($I$2:$I$381,MATCH(ROWS($K$2:$K37),$K$2:$K$381,0)),\"\")","v":"Countess Of Chester Hospital NHS Foundation Trust"}]
[null,null,null,null,null,null,null,null,"County Durham and Darlington NHS Foundation Trust",1,{"$f":"IF(J38=1,COUNTIF($J$2:$J38,1),\"\")","v":37},{"$f":"IFERROR(INDEX($I$2:$I$381,MATCH(ROWS($K$2:$K38),$K$2:$K$381,0)),\"\")","v":"County Durham and Darlington NHS Foundation Trust"}]
[null,null,null,null,null,null,null,null,"Coventry and Warwickshire Partnership NHS Trust",1,{"$f":"IF(J39=1,COUNTIF($J$2:$J39,1),\"\")","v":38},{"$f":"IFERROR(INDEX($I$2:$I$381,MATCH(ROWS($K$2:$K39),$K$2:$K$381,0)),\"\")","v":"Coventry and Warwickshire Partnership NHS Trust"}]
[null,null,null,null,null,null,null,null,"Croydon Health Services NHS Trust",1,{"$f":"IF(J40=1,COUNTIF($J$2:$J40,1),\"\")","v":39},{"$f":"IFERROR(INDEX($I$2:$I$381,MATCH(ROWS($K$2:$K40),$K$2:$K$381,0)),\"\")","v":"Croydon Health Services NHS Trust"}]
[null,null,null,null,null,null,null,null,"Cumbria Northumberland Tyne and Wear NHS Foundation Trust",1,{"$f":"IF(J41=1,COUNTIF($J$2:$J41,1),\"\")","v":40},{"$f":"IFERROR(INDEX($I$2:$I$381,MATCH(ROWS($K$2:$K41),$K$2:$K$381,0)),\"\")","v":"Cumbria Northumberland Tyne and Wear NHS Foundation Trust"}]
[null,null,null,null,null,null,null,null,"Dartford and Gravesham NHS Trust",1,{"$f":"IF(J42=1,COUNTIF($J$2:$J42,1),\"\")","v":41},{"$f":"IFERROR(INDEX($I$2:$I$381,MATCH(ROWS($K$2:$K42),$K$2:$K$381,0)),\"\")","v":"Dartford and Gravesham NHS Trust"}]
[null,null,null,null,null,null,null,null,"Derbyshire Community Health Services NHS Foundation Trust",1,{"$f":"IF(J43=1,COUNTIF($J$2:$J43,1),\"\")","v":42},{"$f":"IFERROR(INDEX($I$2:$I$381,MATCH(ROWS($K$2:$K43),$K$2:$K$381,0)),\"\")","v":"Derbyshire Community Health Services NHS Foundation Trust"}]
[null,null,null,null,null,null,null,null,"Derbyshire Healthcare NHS Foundation Trust",1,{"$f":"IF(J44=1,COUNTIF($J$2:$J44,1),\"\")","v":43},{"$f":"IFERROR(INDEX($I$2:$I$381,MATCH(ROWS($K$2:$K44),$K$2:$K$381,0)),\"\")","v":"Derbyshire Healthcare NHS Foundation Trust"}]
[null,null,null,null,null,null,null,null,"Devon Partnership NHS Trust",1,{"$f":"IF(J45=1,COUNTIF($J$2:$J45,1),\"\")","v":44},{"$f":"IFERROR(INDEX($I$2:$I$381,MATCH(ROWS($K$2:$K45),$K$2:$K$381,0)),\"\")","v":"Devon Partnership NHS Trust"}]
[null,null,null,null,null,null,null,null,"Doncaster and Bassetlaw Teaching Hospitals NHS Foundation Trust",1,{"$f":"IF(J46=1,COUNTIF($J$2:$J46,1),\"\")","v":45},{"$f":"IFERROR(INDEX($I$2:$I$381,MATCH(ROWS($K$2:$K46),$K$2:$K$381,0)),\"\")","v":"Doncaster and Bassetlaw Teaching Hospitals NHS Foundation Trust"}]
[null,null,null,null,null,null,null,null,"Dorset County Hospital NHS Foundation Trust",1,{"$f":"IF(J47=1,COUNTIF($J$2:$J47,1),\"\")","v":46},{"$f":"IFERROR(INDEX($I$2:$I$381,MATCH(ROWS($K$2:$K47),$K$2:$K$381,0)),\"\")","v":"Dorset County Hospital NHS Foundation Trust"}]
[null,null,null,null,null,null,null,null,"Dorset Healthcare University NHS Foundation Trust",1,{"$f":"IF(J48=1,COUNTIF($J$2:$J48,1),\"\")","v":47},{"$f":"IFERROR(INDEX($I$2:$I$381,MATCH(ROWS($K$2:$K48),$K$2:$K$381,0)),\"\")","v":"Dorset Healthcare University NHS Foundation Trust"}]
[null,null,null,null,null,null,null,null,"Dudley Integrated Health and Care NHS Trust",1,{"$f":"IF(J49=1,COUNTIF($J$2:$J49,1),\"\")","v":48},{"$f":"IFERROR(INDEX($I$2:$I$381,MATCH(ROWS($K$2:$K49),$K$2:$K$381,0)),\"\")","v":"Dudley Integrated Health and Care NHS Trust"}]
[null,null,null,null,null,null,null,null,"East and North Hertfordshire NHS Trust",1,{"$f":"IF(J50=1,COUNTIF($J$2:$J50,1),\"\")","v":49},{"$f":"IFERROR(INDEX($I$2:$I$381,MATCH(ROWS($K$2:$K50),$K$2:$K$381,0)),\"\")","v":"East and North Hertfordshire NHS Trust"}]
[null,null,null,null,null,null,null,null,"East Cheshire NHS Trust",1,{"$f":"IF(J51=1,COUNTIF($J$2:$J51,1),\"\")","v":50},{"$f":"IFERROR(INDEX($I$2:$I$381,MATCH(ROWS($K$2:$K51),$K$2:$K$381,0)),\"\")","v":"East Cheshire NHS Trust"}]
[null,null,null,null,null,null,null,null,"East Kent Hospitals University NHS Foundation Trust",1,{"$f":"IF(J52=1,COUNTIF($J$2:$J52,1),\"\")","v":51},{"$f":"IFERROR(INDEX($I$2:$I$381,MATCH(ROWS($K$2:$K52),$K$2:$K$381,0)),\"\")","v":"East Kent Hospitals University NHS Foundation Trust"}]
[null,null,null,null,null,null,null,null,"East Lancashire Hospitals NHS Trust",1,{"$f":"IF(J53=1,COUNTIF($J$2:$J53,1),\"\")","v":52},{"$f":"IFERROR(INDEX($I$2:$I$381,MATCH(ROWS($K$2:$K53),$K$2:$K$381,0)),\"\")","v":"East Lancashire Hospitals NHS Trust"}]
[null,null,null,null,null,null,null,null,"East London NHS Foundation Trust",1,{"$f":"IF(J54=1,COUNTIF($J$2:$J54,1),\"\")","v":53},{"$f":"IFERROR(INDEX($I$2:$I$381,MATCH(ROWS($K$2:$K54),$K$2:$K$381,0)),\"\")","v":"East London NHS Foundation Trust"}]
[null,null,null,null,null,null,null,null,"East Midlands Ambulance Service NHS Trust",1,{"$f":"IF(J55=1,COUNTIF($J$2:$J55,1),\"\")","v":54},{"$f":"IFERROR(INDEX($I$2:$I$381,MATCH(ROWS($K$2:$K55),$K$2:$K$381,0)),\"\")","v":"East Midlands Ambulance Service NHS Trust"}]
[null,null,null,null,null,null,null,null,"East Of England Ambulance Service NHS Trust",1,{"$f":"IF(J56=1,COUNTIF($J$2:$J56,1),\"\")","v":55},{"$f":"IFERROR(INDEX($I$2:$I$381,MATCH(ROWS($K$2:$K56),$K$2:$K$381,0)),\"\")","v":"East Of England Ambulance Service NHS Trust"}]
[null,null,null,null,null,null,null,null,"East Suffolk and North Essex NHS Foundation Trust",1,{"$f":"IF(J57=1,COUNTIF($J$2:$J57,1),\"\")","v":56},{"$f":"IFERROR(INDEX($I$2:$I$381,MATCH(ROWS($K$2:$K57),$K$2:$K$381,0)),\"\")","v":"East Suffolk and North Essex NHS Foundation Trust"}]
[null,null,null,null,null,null,null,null,"East Sussex Healthcare NHS Trust",1,{"$f":"IF(J58=1,COUNTIF($J$2:$J58,1),\"\")","v":57},{"$f":"IFERROR(INDEX($I$2:$I$381,MATCH(ROWS($K$2:$K58),$K$2:$K$381,0)),\"\")","v":"East Sussex Healthcare NHS Trust"}]
[null,null,null,null,null,null,null,null,"Epsom and St Helier University Hospitals NHS Trust",1,{"$f":"IF(J59=1,COUNTIF($J$2:$J59,1),\"\")","v":58},{"$f":"IFERROR(INDEX($I$2:$I$381,MATCH(ROWS($K$2:$K59),$K$2:$K$381,0)),\"\")","v":"Epsom and St Helier University Hospitals NHS Trust"}]
[null,null,null,null,null,null,null,null,"Essex Partnership University NHS Foundation Trust",1,{"$f":"IF(J60=1,COUNTIF($J$2:$J60,1),\"\")","v":59},{"$f":"IFERROR(INDEX($I$2:$I$381,MATCH(ROWS($K$2:$K60),$K$2:$K$381,0)),\"\")","v":"Essex Partnership University NHS Foundation Trust"}]
[null,null,null,null,null,null,null,null,"Frimley Health NHS Foundation Trust",1,{"$f":"IF(J61=1,COUNTIF($J$2:$J61,1),\"\")","v":60},{"$f":"IFERROR(INDEX($I$2:$I$381,MATCH(ROWS($K$2:$K61),$K$2:$K$381,0)),\"\")","v":"Frimley Health NHS Foundation Trust"}]
[null,null,null,null,null,null,null,null,"Gateshead Health NHS Foundation Trust",1,{"$f":"IF(J62=1,COUNTIF($J$2:$J62,1),\"\")","v":61},{"$f":"IFERROR(INDEX($I$2:$I$381,MATCH(ROWS($K$2:$K62),$K$2:$K$381,0)),\"\")","v":"Gateshead Health NHS Foundation Trust"}]
[null,null,null,null,null,null,null,null,"George Eliot Hospital NHS Trust",1,{"$f":"IF(J63=1,COUNTIF($J$2:$J63,1),\"\")","v":62},{"$f":"IFERROR(INDEX($I$2:$I$381,MATCH(ROWS($K$2:$K63),$K$2:$K$381,0)),\"\")","v":"George Eliot Hospital NHS Trust"}]
[null,null,null,null,null,null,null,null,"Gloucestershire Care Services NHS Trust",1,{"$f":"IF(J64=1,COUNTIF($J$2:$J64,1),\"\")","v":63},{"$f":"IFERROR(INDEX($I$2:$I$381,MATCH(ROWS($K$2:$K64),$K$2:$K$381,0)),\"\")","v":"Gloucestershire Care Services NHS Trust"}]
[null,null,null,null,null,null,null,null,"Gloucestershire Health and Care NHS Foundation Trust",1,{"$f":"IF(J65=1,COUNTIF($J$2:$J65,1),\"\")","v":64},{"$f":"IFERROR(INDEX($I$2:$I$381,MATCH(ROWS($K$2:$K65),$K$2:$K$381,0)),\"\")","v":"Gloucestershire Health and Care NHS Foundation Trust"}]
[null,null,null,null,null,null,null,null,"Gloucestershire Hospitals NHS Foundation Trust",1,{"$f":"IF(J66=1,COUNTIF($J$2:$J66,1),\"\")","v":65},{"$f":"IFERROR(INDEX($I$2:$I$381,MATCH(ROWS($K$2:$K66),$K$2:$K$381,0)),\"\")","v":"Gloucestershire Hospitals NHS Foundation Trust"}]
[null,null,null,null,null,null,null,null,"Great Ormond Street Hospital for Children NHS Foundation Trust",{"$f":"--ISNUMBER(SEARCH($P$1,I67))","v":1},{"$f":"IF(J67=1,COUNTIF($J$2:$J67,1),\"\")","v":66},{"$f":"IFERROR(INDEX($I$2:$I$381,MATCH(ROWS($K$2:$K67),$K$2:$K$381,0)),\"\")","v":"Great Ormond Street Hospital for Children NHS Foundation Trust"}]
[null,null,null,null,null,null,null,null,"Great Western Hospitals NHS Foundation Trust",1,{"$f":"IF(J68=1,COUNTIF($J$2:$J68,1),\"\")","v":67},{"$f":"IFERROR(INDEX($I$2:$I$381,MATCH(ROWS($K$2:$K68),$K$2:$K$381,0)),\"\")","v":"Great Western Hospitals NHS Foundation Trust"}]
[null,null,null,null,null,null,null,null,"Greater Manchester Mental Health NHS Foundation Trust",1,{"$f":"IF(J69=1,COUNTIF($J$2:$J69,1),\"\")","v":68},{"$f":"IFERROR(INDEX($I$2:$I$381,MATCH(ROWS($K$2:$K69),$K$2:$K$381,0)),\"\")","v":"Greater Manchester Mental Health NHS Foundation Trust"}]
[null,null,null,null,null,null,null,null,"Guy's and St Thomas' NHS Foundation Trust",1,{"$f":"IF(J70=1,COUNTIF($J$2:$J70,1),\"\")","v":69},{"$f":"IFERROR(INDEX($I$2:$I$381,MATCH(ROWS($K$2:$K70),$K$2:$K$381,0)),\"\")","v":"Guy's and St Thomas' NHS Foundation Trust"}]
[null,null,null,null,null,null,null,null,"Hampshire Hospitals NHS Foundation Trust",1,{"$f":"IF(J71=1,COUNTIF($J$2:$J71,1),\"\")","v":70},{"$f":"IFERROR(INDEX($I$2:$I$381,MATCH(ROWS($K$2:$K71),$K$2:$K$381,0)),\"\")","v":"Hampshire Hospitals NHS Foundation Trust"}]
[null,null,null,null,null,null,null,null,"Harrogate and District NHS Foundation Trust",1,{"$f":"IF(J72=1,COUNTIF($J$2:$J72,1),\"\")","v":71},{"$f":"IFERROR(INDEX($I$2:$I$381,MATCH(ROWS($K$2:$K72),$K$2:$K$381,0)),\"\")","v":"Harrogate and District NHS Foundation Trust"}]
[null,null,null,null,null,null,null,null,"Hertfordshire Community NHS Trust",1,{"$f":"IF(J73=1,COUNTIF($J$2:$J73,1),\"\")","v":72},{"$f":"IFERROR(INDEX($I$2:$I$381,MATCH(ROWS($K$2:$K73),$K$2:$K$381,0)),\"\")","v":"Hertfordshire Community NHS Trust"}]
[null,null,null,null,null,null,null,null,"Hertfordshire Partnership University NHS Foundation Trust",1,{"$f":"IF(J74=1,COUNTIF($J$2:$J74,1),\"\")","v":73},{"$f":"IFERROR(INDEX($I$2:$I$381,MATCH(ROWS($K$2:$K74),$K$2:$K$381,0)),\"\")","v":"Hertfordshire Partnership University NHS Foundation Trust"}]
[null,null,null,null,null,null,null,null,"Homerton University Hospital NHS Foundation Trust",1,{"$f":"IF(J75=1,COUNTIF($J$2:$J75,1),\"\")","v":74},{"$f":"IFERROR(INDEX($I$2:$I$381,MATCH(ROWS($K$2:$K75),$K$2:$K$381,0)),\"\")","v":"Homerton University Hospital NHS Foundation Trust"}]
[null,null,null,null,null,null,null,null,"Hounslow and Richmond Community Healthcare NHS Trust",1,{"$f":"IF(J76=1,COUNTIF($J$2:$J76,1),\"\")","v":75},{"$f":"IFERROR(INDEX($I$2:$I$381,MATCH(ROWS($K$2:$K76),$K$2:$K$381,0)),\"\")","v":"Hounslow and Richmond Community Healthcare NHS Trust"}]
[null,null,null,null,null,null,null,null,"Hull University Teaching Hospitals NHS Trust",1,{"$f":"IF(J77=1,COUNTIF($J$2:$J77,1),\"\")","v":76},{"$f":"IFERROR(INDEX($I$2:$I$381,MATCH(ROWS($K$2:$K77),$K$2:$K$381,0)),\"\")","v":"Hull University Teaching Hospitals NHS Trust"}]
[null,null,null,null,null,null,null,null,"Humber Teaching NHS Foundation Trust",1,{"$f":"IF(J78=1,COUNTIF($J$2:$J78,1),\"\")","v":77},{"$f":"IFERROR(INDEX($I$2:$I$381,MATCH(ROWS($K$2:$K78),$K$2:$K$381,0)),\"\")","v":"Humber Teaching NHS Foundation Trust"}]
[null,null,null,null,null,null,null,null,"Imperial College Healthcare NHS Trust",1,{"$f":"IF(J79=1,COUNTIF($J$2:$J79,1),\"\")","v":78},{"$f":"IFERROR(INDEX($I$2:$I$381,MATCH(ROWS($K$2:$K79),$K$2:$K$381,0)),\"\")","v":"Imperial College Healthcare NHS Trust"}]
[null,null,null,null,null,null,null,null,"Isle Of Wight NHS Trust",1,{"$f":"IF(J80=1,COUNTIF($J$2:$J80,1),\"\")","v":79},{"$f":"IFERROR(INDEX($I$2:$I$381,MATCH(ROWS($K$2:$K80),$K$2:$K$381,0)),\"\")","v":"Isle Of Wight NHS Trust"}]
[null,null,null,null,null,null,null,null,"James Paget University Hospitals NHS Foundation Trust",1,{"$f":"IF(J81=1,COUNTIF($J$2:$J81,1),\"\")","v":80},{"$f":"IFERROR(INDEX($I$2:$I$381,MATCH(ROWS($K$2:$K81),$K$2:$K$381,0)),\"\")","v":"James Paget University Hospitals NHS Foundation Trust"}]
[null,null,null,null,null,null,null,null,"Kent and Medway NHS and Social Care Partnership Trust",1,{"$f":"IF(J82=1,COUNTIF($J$2:$J82,1),\"\")","v":81},{"$f":"IFERROR(INDEX($I$2:$I$381,MATCH(ROWS($K$2:$K82),$K$2:$K$381,0)),\"\")","v":"Kent and Medway NHS and Social Care Partnership Trust"}]
[null,null,null,null,null,null,null,null,"Kent Community Health NHS Foundation Trust",1,{"$f":"IF(J83=1,COUNTIF($J$2:$J83,1),\"\")","v":82},{"$f":"IFERROR(INDEX($I$2:$I$381,MATCH(ROWS($K$2:$K83),$K$2:$K$381,0)),\"\")","v":"Kent Community Health NHS Foundation Trust"}]
[null,null,null,null,null,null,null,null,"Kettering General Hospital NHS Foundation Trust",1,{"$f":"IF(J84=1,COUNTIF($J$2:$J84,1),\"\")","v":83},{"$f":"IFERROR(INDEX($I$2:$I$381,MATCH(ROWS($K$2:$K84),$K$2:$K$381,0)),\"\")","v":"Kettering General Hospital NHS Foundation Trust"}]
[null,null,null,null,null,null,null,null,"King's College Hospital NHS Foundation Trust",1,{"$f":"IF(J85=1,COUNTIF($J$2:$J85,1),\"\")","v":84},{"$f":"IFERROR(INDEX($I$2:$I$381,MATCH(ROWS($K$2:$K85),$K$2:$K$381,0)),\"\")","v":"King's College Hospital NHS Foundation Trust"}]
[null,null,null,null,null,null,null,null,"Kingston Hospital NHS Foundation Trust",1,{"$f":"IF(J86=1,COUNTIF($J$2:$J86,1),\"\")","v":85},{"$f":"IFERROR(INDEX($I$2:$I$381,MATCH(ROWS($K$2:$K86),$K$2:$K$381,0)),\"\")","v":"Kingston Hospital NHS Foundation Trust"}]
[null,null,null,null,null,null,null,null,"Lancashire & South Cumbria NHS Foundation Trust",1,{"$f":"IF(J87=1,COUNTIF($J$2:$J87,1),\"\")","v":86},{"$f":"IFERROR(INDEX($I$2:$I$381,MATCH(ROWS($K$2:$K87),$K$2:$K$381,0)),\"\")","v":"Lancashire & South Cumbria NHS Foundation Trust"}]
[null,null,null,null,null,null,null,null,"Lancashire Teaching Hospitals NHS Foundation Trust",1,{"$f":"IF(J88=1,COUNTIF($J$2:$J88,1),\"\")","v":87},{"$f":"IFERROR(INDEX($I$2:$I$381,MATCH(ROWS($K$2:$K88),$K$2:$K$381,0)),\"\")","v":"Lancashire Teaching Hospitals NHS Foundation Trust"}]
[null,null,null,null,null,null,null,null,"Leeds and York Partnership NHS Foundation Trust",1,{"$f":"IF(J89=1,COUNTIF($J$2:$J89,1),\"\")","v":88},{"$f":"IFERROR(INDEX($I$2:$I$381,MATCH(ROWS($K$2:$K89),$K$2:$K$381,0)),\"\")","v":"Leeds and York Partnership NHS Foundation Trust"}]
[null,null,null,null,null,null,null,null,"Leeds Community Healthcare NHS Trust",1,{"$f":"IF(J90=1,COUNTIF($J$2:$J90,1),\"\")","v":89},{"$f":"IFERROR(INDEX($I$2:$I$381,MATCH(ROWS($K$2:$K90),$K$2:$K$381,0)),\"\")","v":"Leeds Community Healthcare NHS Trust"}]
[null,null,null,null,null,null,null,null,"Leeds Teaching Hospitals NHS Trust",1,{"$f":"IF(J91=1,COUNTIF($J$2:$J91,1),\"\")","v":90},{"$f":"IFERROR(INDEX($I$2:$I$381,MATCH(ROWS($K$2:$K91),$K$2:$K$381,0)),\"\")","v":"Leeds Teaching Hospitals NHS Trust"}]
[null,null,null,null,null,null,null,null,"Lewisham and Greenwich NHS Trust",1,{"$f":"IF(J92=1,COUNTIF($J$2:$J92,1),\"\")","v":91},{"$f":"IFERROR(INDEX($I$2:$I$381,MATCH(ROWS($K$2:$K92),$K$2:$K$381,0)),\"\")","v":"Lewisham and Greenwich NHS Trust"}]
[null,null,null,null,null,null,null,null,"Lincolnshire Community Health Services NHS Trust",1,{"$f":"IF(J93=1,COUNTIF($J$2:$J93,1),\"\")","v":92},{"$f":"IFERROR(INDEX($I$2:$I$381,MATCH(ROWS($K$2:$K93),$K$2:$K$381,0)),\"\")","v":"Lincolnshire Community Health Services NHS Trust"}]
[null,null,null,null,null,null,null,null,"Lincolnshire Partnership NHS Foundation Trust",1,{"$f":"IF(J94=1,COUNTIF($J$2:$J94,1),\"\")","v":93},{"$f":"IFERROR(INDEX($I$2:$I$381,MATCH(ROWS($K$2:$K94),$K$2:$K$381,0)),\"\")","v":"Lincolnshire Partnership NHS Foundation Trust"}]
[null,null,null,null,null,null,null,null,"Liverpool Heart and Chest NHS Foundation Trust",1,{"$f":"IF(J95=1,COUNTIF($J$2:$J95,1),\"\")","v":94},{"$f":"IFERROR(INDEX($I$2:$I$381,MATCH(ROWS($K$2:$K95),$K$2:$K$381,0)),\"\")","v":"Liverpool Heart and Chest NHS Foundation Trust"}]
[null,null,null,null,null,null,null,null,"Liverpool University Hospitals NHS Foundation Trust",1,{"$f":"IF(J96=1,COUNTIF($J$2:$J96,1),\"\")","v":95},{"$f":"IFERROR(INDEX($I$2:$I$381,MATCH(ROWS($K$2:$K96),$K$2:$K$381,0)),\"\")","v":"Liverpool University Hospitals NHS Foundation Trust"}]
[null,null,null,null,null,null,null,null,"Liverpool Women's NHS Foundation Trust",1,{"$f":"IF(J97=1,COUNTIF($J$2:$J97,1),\"\")","v":96},{"$f":"IFERROR(INDEX($I$2:$I$381,MATCH(ROWS($K$2:$K97),$K$2:$K$381,0)),\"\")","v":"Liverpool Women's NHS Foundation Trust"}]
[null,null,null,null,null,null,null,null,"London Ambulance Service NHS Trust",1,{"$f":"IF(J98=1,COUNTIF($J$2:$J98,1),\"\")","v":97},{"$f":"IFERROR(INDEX($I$2:$I$381,MATCH(ROWS($K$2:$K98),$K$2:$K$381,0)),\"\")","v":"London Ambulance Service NHS Trust"}]
[null,null,null,null,null,null,null,null,"London North West University Healthcare NHS Trust",1,{"$f":"IF(J99=1,COUNTIF($J$2:$J99,1),\"\")","v":98},{"$f":"IFERROR(INDEX($I$2:$I$381,MATCH(ROWS($K$2:$K99),$K$2:$K$381,0)),\"\")","v":"London North West University Healthcare NHS Trust"}]
[null,null,null,null,null,null,null,null,"Maidstone and Tunbridge Wells NHS Trust",1,{"$f":"IF(J100=1,COUNTIF($J$2:$J100,1),\"\")","v":99},{"$f":"IFERROR(INDEX($I$2:$I$381,MATCH(ROWS($K$2:$K100),$K$2:$K$381,0)),\"\")","v":"Maidstone and Tunbridge Wells NHS Trust"}]
[null,null,null,null,null,null,null,null,"Manchester University NHS Foundation Trust",1,{"$f":"IF(J101=1,COUNTIF($J$2:$J101,1),\"\")","v":100},{"$f":"IFERROR(INDEX($I$2:$I$381,MATCH(ROWS($K$2:$K101),$K$2:$K$381,0)),\"\")","v":"Manchester University NHS Foundation Trust"}]
[null,null,null,null,null,null,null,null,"Medway NHS Foundation Trust",1,{"$f":"IF(J102=1,COUNTIF($J$2:$J102,1),\"\")","v":101},{"$f":"IFERROR(INDEX($I$2:$I$381,MATCH(ROWS($K$2:$K102),$K$2:$K$381,0)),\"\")","v":"Medway NHS Foundation Trust"}]
[null,null,null,null,null,null,null,null,"Mersey Care NHS Foundation Trust",1,{"$f":"IF(J103=1,COUNTIF($J$2:$J103,1),\"\")","v":102},{"$f":"IFERROR(INDEX($I$2:$I$381,MATCH(ROWS($K$2:$K103),$K$2:$K$381,0)),\"\")","v":"Mersey Care NHS Foundation Trust"}]
[null,null,null,null,null,null,null,null,"Mid and South Essex NHS Foundation Trust",1,{"$f":"IF(J104=1,COUNTIF($J$2:$J104,1),\"\")","v":103},{"$f":"IFERROR(INDEX($I$2:$I$381,MATCH(ROWS($K$2:$K104),$K$2:$K$381,0)),\"\")","v":"Mid and South Essex NHS Foundation Trust"}]
[null,null,null,null,null,null,null,null,"Mid Cheshire Hospitals NHS Foundation Trust",1,{"$f":"IF(J105=1,COUNTIF($J$2:$J105,1),\"\")","v":104},{"$f":"IFERROR(INDEX($I$2:$I$381,MATCH(ROWS($K$2:$K105),$K$2:$K$381,0)),\"\")","v":"Mid Cheshire Hospitals NHS Foundation Trust"}]
[null,null,null,null,null,null,null,null,"Mid Staffordshire NHS Foundation Trust",1,{"$f":"IF(J106=1,COUNTIF($J$2:$J106,1),\"\")","v":105},{"$f":"IFERROR(INDEX($I$2:$I$381,MATCH(ROWS($K$2:$K106),$K$2:$K$381,0)),\"\")","v":"Mid Staffordshire NHS Foundation Trust"}]
[null,null,null,null,null,null,null,null,"Mid Yorkshire Hospitals NHS Trust",1,{"$f":"IF(J107=1,COUNTIF($J$2:$J107,1),\"\")","v":106},{"$f":"IFERROR(INDEX($I$2:$I$381,MATCH(ROWS($K$2:$K107),$K$2:$K$381,0)),\"\")","v":"Mid Yorkshire Hospitals NHS Trust"}]
[null,null,null,null,null,null,null,null,"Midlands Partnership NHS Foundation Trust",1,{"$f":"IF(J108=1,COUNTIF($J$2:$J108,1),\"\")","v":107},{"$f":"IFERROR(INDEX($I$2:$I$381,MATCH(ROWS($K$2:$K108),$K$2:$K$381,0)),\"\")","v":"Midlands Partnership NHS Foundation Trust"}]
[null,null,null,null,null,null,null,null,"Milton Keynes University Hospital NHS Foundation Trust",1,{"$f":"IF(J109=1,COUNTIF($J$2:$J109,1),\"\")","v":108},{"$f":"IFERROR(INDEX($I$2:$I$381,MATCH(ROWS($K$2:$K109),$K$2:$K$381,0)),\"\")","v":"Milton Keynes University Hospital NHS Foundation Trust"}]
[null,null,null,null,null,null,null,null,"Moorfields Eye Hospital NHS Foundation Trust",1,{"$f":"IF(J110=1,COUNTIF($J$2:$J110,1),\"\")","v":109},{"$f":"IFERROR(INDEX($I$2:$I$381,MATCH(ROWS($K$2:$K110),$K$2:$K$381,0)),\"\")","v":"Moorfields Eye Hospital NHS Foundation Trust"}]
[null,null,null,null,null,null,null,null,"NHS Barking And Dagenham CCG",1,{"$f":"IF(J111=1,COUNTIF($J$2:$J111,1),\"\")","v":110},{"$f":"IFERROR(INDEX($I$2:$I$381,MATCH(ROWS($K$2:$K111),$K$2:$K$381,0)),\"\")","v":"NHS Barking And Dagenham CCG"}]
[null,null,null,null,null,null,null,null,"NHS Barnsley CCG",1,{"$f":"IF(J112=1,COUNTIF($J$2:$J112,1),\"\")","v":111},{"$f":"IFERROR(INDEX($I$2:$I$381,MATCH(ROWS($K$2:$K112),$K$2:$K$381,0)),\"\")","v":"NHS Barnsley CCG"}]
[null,null,null,null,null,null,null,null,"NHS Basildon And Brentwood CCG",1,{"$f":"IF(J113=1,COUNTIF($J$2:$J113,1),\"\")","v":112},{"$f":"IFERROR(INDEX($I$2:$I$381,MATCH(ROWS($K$2:$K113),$K$2:$K$381,0)),\"\")","v":"NHS Basildon And Brentwood CCG"}]
[null,null,null,null,null,null,null,null,"NHS Bassetlaw CCG",1,{"$f":"IF(J114=1,COUNTIF($J$2:$J114,1),\"\")","v":113},{"$f":"IFERROR(INDEX($I$2:$I$381,MATCH(ROWS($K$2:$K114),$K$2:$K$381,0)),\"\")","v":"NHS Bassetlaw CCG"}]
[null,null,null,null,null,null,null,null,"NHS Bath And North East Somerset, Swindon And Wiltshire CCG",1,{"$f":"IF(J115=1,COUNTIF($J$2:$J115,1),\"\")","v":114},{"$f":"IFERROR(INDEX($I$2:$I$381,MATCH(ROWS($K$2:$K115),$K$2:$K$381,0)),\"\")","v":"NHS Bath And North East Somerset, Swindon And Wiltshire CCG"}]
[null,null,null,null,null,null,null,null,"NHS Bedfordshire CCG",1,{"$f":"IF(J116=1,COUNTIF($J$2:$J116,1),\"\")","v":115},{"$f":"IFERROR(INDEX($I$2:$I$381,MATCH(ROWS($K$2:$K116),$K$2:$K$381,0)),\"\")","v":"NHS Bedfordshire CCG"}]
[null,null,null,null,null,null,null,null,"NHS Bedfordshire, Luton And Milton Keynes CCG",1,{"$f":"IF(J117=1,COUNTIF($J$2:$J117,1),\"\")","v":116},{"$f":"IFERROR(INDEX($I$2:$I$381,MATCH(ROWS($K$2:$K117),$K$2:$K$381,0)),\"\")","v":"NHS Bedfordshire, Luton And Milton Keynes CCG"}]
[null,null,null,null,null,null,null,null,"NHS Berkshire West CCG",1,{"$f":"IF(J118=1,COUNTIF($J$2:$J118,1),\"\")","v":117},{"$f":"IFERROR(INDEX($I$2:$I$381,MATCH(ROWS($K$2:$K118),$K$2:$K$381,0)),\"\")","v":"NHS Berkshire West CCG"}]
[null,null,null,null,null,null,null,null,"NHS Birmingham And Solihull CCG",1,{"$f":"IF(J119=1,COUNTIF($J$2:$J119,1),\"\")","v":118},{"$f":"IFERROR(INDEX($I$2:$I$381,MATCH(ROWS($K$2:$K119),$K$2:$K$381,0)),\"\")","v":"NHS Birmingham And Solihull CCG"}]
[null,null,null,null,null,null,null,null,"NHS Black Country And West Birmingham CCG",1,{"$f":"IF(J120=1,COUNTIF($J$2:$J120,1),\"\")","v":119},{"$f":"IFERROR(INDEX($I$2:$I$381,MATCH(ROWS($K$2:$K120),$K$2:$K$381,0)),\"\")","v":"NHS Black Country And West Birmingham CCG"}]
[null,null,null,null,null,null,null,null,"NHS Blackburn With Darwen CCG",1,{"$f":"IF(J121=1,COUNTIF($J$2:$J121,1),\"\")","v":120},{"$f":"IFERROR(INDEX($I$2:$I$381,MATCH(ROWS($K$2:$K121),$K$2:$K$381,0)),\"\")","v":"NHS Blackburn With Darwen CCG"}]
[null,null,null,null,null,null,null,null,"NHS Blackpool CCG",1,{"$f":"IF(J122=1,COUNTIF($J$2:$J122,1),\"\")","v":121},{"$f":"IFERROR(INDEX($I$2:$I$381,MATCH(ROWS($K$2:$K122),$K$2:$K$381,0)),\"\")","v":"NHS Blackpool CCG"}]
[null,null,null,null,null,null,null,null,"NHS Bolton CCG",1,{"$f":"IF(J123=1,COUNTIF($J$2:$J123,1),\"\")","v":122},{"$f":"IFERROR(INDEX($I$2:$I$381,MATCH(ROWS($K$2:$K123),$K$2:$K$381,0)),\"\")","v":"NHS Bolton CCG"}]
[null,null,null,null,null,null,null,null,"NHS Bradford District And Craven CCG",1,{"$f":"IF(J124=1,COUNTIF($J$2:$J124,1),\"\")","v":123},{"$f":"IFERROR(INDEX($I$2:$I$381,MATCH(ROWS($K$2:$K124),$K$2:$K$381,0)),\"\")","v":"NHS Bradford District And Craven CCG"}]
[null,null,null,null,null,null,null,null,"NHS Brent CCG",1,{"$f":"IF(J125=1,COUNTIF($J$2:$J125,1),\"\")","v":124},{"$f":"IFERROR(INDEX($I$2:$I$381,MATCH(ROWS($K$2:$K125),$K$2:$K$381,0)),\"\")","v":"NHS Brent CCG"}]
[null,null,null,null,null,null,null,null,"NHS Brighton And Hove CCG",1,{"$f":"IF(J126=1,COUNTIF($J$2:$J126,1),\"\")","v":125},{"$f":"IFERROR(INDEX($I$2:$I$381,MATCH(ROWS($K$2:$K126),$K$2:$K$381,0)),\"\")","v":"NHS Brighton And Hove CCG"}]
[null,null,null,null,null,null,null,null,"NHS Bristol, North Somerset And South Gloucestershire CCG",1,{"$f":"IF(J127=1,COUNTIF($J$2:$J127,1),\"\")","v":126},{"$f":"IFERROR(INDEX($I$2:$I$381,MATCH(ROWS($K$2:$K127),$K$2:$K$381,0)),\"\")","v":"NHS Bristol, North Somerset And South Gloucestershire CCG"}]
[null,null,null,null,null,null,null,null,"NHS Buckinghamshire CCG",1,{"$f":"IF(J128=1,COUNTIF($J$2:$J128,1),\"\")","v":127},{"$f":"IFERROR(INDEX($I$2:$I$381,MATCH(ROWS($K$2:$K128),$K$2:$K$381,0)),\"\")","v":"NHS Buckinghamshire CCG"}]
[null,null,null,null,null,null,null,null,"NHS Bury CCG",1,{"$f":"IF(J129=1,COUNTIF($J$2:$J129,1),\"\")","v":128},{"$f":"IFERROR(INDEX($I$2:$I$381,MATCH(ROWS($K$2:$K129),$K$2:$K$381,0)),\"\")","v":"NHS Bury CCG"}]
[null,null,null,null,null,null,null,null,"NHS Calderdale CCG",1,{"$f":"IF(J130=1,COUNTIF($J$2:$J130,1),\"\")","v":129},{"$f":"IFERROR(INDEX($I$2:$I$381,MATCH(ROWS($K$2:$K130),$K$2:$K$381,0)),\"\")","v":"NHS Calderdale CCG"}]
[null,null,null,null,null,null,null,null,"NHS Cambridgeshire And Peterborough CCG",{"$f":"--ISNUMBER(SEARCH($P$1,I131))","v":1},{"$f":"IF(J131=1,COUNTIF($J$2:$J131,1),\"\")","v":130},{"$f":"IFERROR(INDEX($I$2:$I$381,MATCH(ROWS($K$2:$K131),$K$2:$K$381,0)),\"\")","v":"NHS Cambridgeshire And Peterborough CCG"}]
[null,null,null,null,null,null,null,null,"NHS Cannock Chase CCG",1,{"$f":"IF(J132=1,COUNTIF($J$2:$J132,1),\"\")","v":131},{"$f":"IFERROR(INDEX($I$2:$I$381,MATCH(ROWS($K$2:$K132),$K$2:$K$381,0)),\"\")","v":"NHS Cannock Chase CCG"}]
[null,null,null,null,null,null,null,null,"NHS Castle Point And Rochford CCG",1,{"$f":"IF(J133=1,COUNTIF($J$2:$J133,1),\"\")","v":132},{"$f":"IFERROR(INDEX($I$2:$I$381,MATCH(ROWS($K$2:$K133),$K$2:$K$381,0)),\"\")","v":"NHS Castle Point And Rochford CCG"}]
[null,null,null,null,null,null,null,null,"NHS Central London (Westminster) CCG",1,{"$f":"IF(J134=1,COUNTIF($J$2:$J134,1),\"\")","v":133},{"$f":"IFERROR(INDEX($I$2:$I$381,MATCH(ROWS($K$2:$K134),$K$2:$K$381,0)),\"\")","v":"NHS Central London (Westminster) CCG"}]
[null,null,null,null,null,null,null,null,"NHS Central Manchester CCG",1,{"$f":"IF(J135=1,COUNTIF($J$2:$J135,1),\"\")","v":134},{"$f":"IFERROR(INDEX($I$2:$I$381,MATCH(ROWS($K$2:$K135),$K$2:$K$381,0)),\"\")","v":"NHS Central Manchester CCG"}]
[null,null,null,null,null,null,null,null,"NHS Cheshire CCG",1,{"$f":"IF(J136=1,COUNTIF($J$2:$J136,1),\"\")","v":135},{"$f":"IFERROR(INDEX($I$2:$I$381,MATCH(ROWS($K$2:$K136),$K$2:$K$381,0)),\"\")","v":"NHS Cheshire CCG"}]
[null,null,null,null,null,null,null,null,"NHS Chorley And South Ribble CCG",1,{"$f":"IF(J137=1,COUNTIF($J$2:$J137,1),\"\")","v":136},{"$f":"IFERROR(INDEX($I$2:$I$381,MATCH(ROWS($K$2:$K137),$K$2:$K$381,0)),\"\")","v":"NHS Chorley And South Ribble CCG"}]
[null,null,null,null,null,null,null,null,"NHS City And Hackney CCG",1,{"$f":"IF(J138=1,COUNTIF($J$2:$J138,1),\"\")","v":137},{"$f":"IFERROR(INDEX($I$2:$I$381,MATCH(ROWS($K$2:$K138),$K$2:$K$381,0)),\"\")","v":"NHS City And Hackney CCG"}]
[null,null,null,null,null,null,null,null,"NHS County Durham CCG",1,{"$f":"IF(J139=1,COUNTIF($J$2:$J139,1),\"\")","v":138},{"$f":"IFERROR(INDEX($I$2:$I$381,MATCH(ROWS($K$2:$K139),$K$2:$K$381,0)),\"\")","v":"NHS County Durham CCG"}]
[null,null,null,null,null,null,null,null,"NHS Coventry And Rugby CCG",1,{"$f":"IF(J140=1,COUNTIF($J$2:$J140,1),\"\")","v":139},{"$f":"IFERROR(INDEX($I$2:$I$381,MATCH(ROWS($K$2:$K140),$K$2:$K$381,0)),\"\")","v":"NHS Coventry And Rugby CCG"}]
[null,null,null,null,null,null,null,null,"NHS Coventry And Warwickshire CCG",1,{"$f":"IF(J141=1,COUNTIF($J$2:$J141,1),\"\")","v":140},{"$f":"IFERROR(INDEX($I$2:$I$381,MATCH(ROWS($K$2:$K141),$K$2:$K$381,0)),\"\")","v":"NHS Coventry And Warwickshire CCG"}]
[null,null,null,null,null,null,null,null,"NHS Derby And Derbyshire CCG",1,{"$f":"IF(J142=1,COUNTIF($J$2:$J142,1),\"\")","v":141},{"$f":"IFERROR(INDEX($I$2:$I$381,MATCH(ROWS($K$2:$K142),$K$2:$K$381,0)),\"\")","v":"NHS Derby And Derbyshire CCG"}]
[null,null,null,null,null,null,null,null,"NHS Devon CCG",1,{"$f":"IF(J143=1,COUNTIF($J$2:$J143,1),\"\")","v":142},{"$f":"IFERROR(INDEX($I$2:$I$381,MATCH(ROWS($K$2:$K143),$K$2:$K$381,0)),\"\")","v":"NHS Devon CCG"}]
[null,null,null,null,null,null,null,null,"NHS Doncaster CCG",1,{"$f":"IF(J144=1,COUNTIF($J$2:$J144,1),\"\")","v":143},{"$f":"IFERROR(INDEX($I$2:$I$381,MATCH(ROWS($K$2:$K144),$K$2:$K$381,0)),\"\")","v":"NHS Doncaster CCG"}]
[null,null,null,null,null,null,null,null,"NHS Dorset CCG",1,{"$f":"IF(J145=1,COUNTIF($J$2:$J145,1),\"\")","v":144},{"$f":"IFERROR(INDEX($I$2:$I$381,MATCH(ROWS($K$2:$K145),$K$2:$K$381,0)),\"\")","v":"NHS Dorset CCG"}]
[null,null,null,null,null,null,null,null,"NHS Dudley CCG",1,{"$f":"IF(J146=1,COUNTIF($J$2:$J146,1),\"\")","v":145},{"$f":"IFERROR(INDEX($I$2:$I$381,MATCH(ROWS($K$2:$K146),$K$2:$K$381,0)),\"\")","v":"NHS Dudley CCG"}]
[null,null,null,null,null,null,null,null,"NHS Ealing CCG",1,{"$f":"IF(J147=1,COUNTIF($J$2:$J147,1),\"\")","v":146},{"$f":"IFERROR(INDEX($I$2:$I$381,MATCH(ROWS($K$2:$K147),$K$2:$K$381,0)),\"\")","v":"NHS Ealing CCG"}]
[null,null,null,null,null,null,null,null,"NHS East And North Hertfordshire CCG",1,{"$f":"IF(J148=1,COUNTIF($J$2:$J148,1),\"\")","v":147},{"$f":"IFERROR(INDEX($I$2:$I$381,MATCH(ROWS($K$2:$K148),$K$2:$K$381,0)),\"\")","v":"NHS East And North Hertfordshire CCG"}]
[null,null,null,null,null,null,null,null,"NHS East Berkshire CCG",1,{"$f":"IF(J149=1,COUNTIF($J$2:$J149,1),\"\")","v":148},{"$f":"IFERROR(INDEX($I$2:$I$381,MATCH(ROWS($K$2:$K149),$K$2:$K$381,0)),\"\")","v":"NHS East Berkshire CCG"}]
[null,null,null,null,null,null,null,null,"NHS East Lancashire CCG",1,{"$f":"IF(J150=1,COUNTIF($J$2:$J150,1),\"\")","v":149},{"$f":"IFERROR(INDEX($I$2:$I$381,MATCH(ROWS($K$2:$K150),$K$2:$K$381,0)),\"\")","v":"NHS East Lancashire CCG"}]
[null,null,null,null,null,null,null,null,"NHS East Leicestershire And Rutland CCG",1,{"$f":"IF(J151=1,COUNTIF($J$2:$J151,1),\"\")","v":150},{"$f":"IFERROR(INDEX($I$2:$I$381,MATCH(ROWS($K$2:$K151),$K$2:$K$381,0)),\"\")","v":"NHS East Leicestershire And Rutland CCG"}]
[null,null,null,null,null,null,null,null,"NHS East Riding Of Yorkshire CCG",1,{"$f":"IF(J152=1,COUNTIF($J$2:$J152,1),\"\")","v":151},{"$f":"IFERROR(INDEX($I$2:$I$381,MATCH(ROWS($K$2:$K152),$K$2:$K$381,0)),\"\")","v":"NHS East Riding Of Yorkshire CCG"}]
[null,null,null,null,null,null,null,null,"NHS East Staffordshire CCG",1,{"$f":"IF(J153=1,COUNTIF($J$2:$J153,1),\"\")","v":152},{"$f":"IFERROR(INDEX($I$2:$I$381,MATCH(ROWS($K$2:$K153),$K$2:$K$381,0)),\"\")","v":"NHS East Staffordshire CCG"}]
[null,null,null,null,null,null,null,null,"NHS East Sussex CCG",1,{"$f":"IF(J154=1,COUNTIF($J$2:$J154,1),\"\")","v":153},{"$f":"IFERROR(INDEX($I$2:$I$381,MATCH(ROWS($K$2:$K154),$K$2:$K$381,0)),\"\")","v":"NHS East Sussex CCG"}]
[null,null,null,null,null,null,null,null,"NHS Fareham And Gosport CCG",1,{"$f":"IF(J155=1,COUNTIF($J$2:$J155,1),\"\")","v":154},{"$f":"IFERROR(INDEX($I$2:$I$381,MATCH(ROWS($K$2:$K155),$K$2:$K$381,0)),\"\")","v":"NHS Fareham And Gosport CCG"}]
[null,null,null,null,null,null,null,null,"NHS Frimley CCG",1,{"$f":"IF(J156=1,COUNTIF($J$2:$J156,1),\"\")","v":155},{"$f":"IFERROR(INDEX($I$2:$I$381,MATCH(ROWS($K$2:$K156),$K$2:$K$381,0)),\"\")","v":"NHS Frimley CCG"}]
[null,null,null,null,null,null,null,null,"NHS Fylde & Wyre CCG",1,{"$f":"IF(J157=1,COUNTIF($J$2:$J157,1),\"\")","v":156},{"$f":"IFERROR(INDEX($I$2:$I$381,MATCH(ROWS($K$2:$K157),$K$2:$K$381,0)),\"\")","v":"NHS Fylde & Wyre CCG"}]
[null,null,null,null,null,null,null,null,"NHS Gloucestershire CCG",1,{"$f":"IF(J158=1,COUNTIF($J$2:$J158,1),\"\")","v":157},{"$f":"IFERROR(INDEX($I$2:$I$381,MATCH(ROWS($K$2:$K158),$K$2:$K$381,0)),\"\")","v":"NHS Gloucestershire CCG"}]
[null,null,null,null,null,null,null,null,"NHS Greater Huddersfield CCG",1,{"$f":"IF(J159=1,COUNTIF($J$2:$J159,1),\"\")","v":158},{"$f":"IFERROR(INDEX($I$2:$I$381,MATCH(ROWS($K$2:$K159),$K$2:$K$381,0)),\"\")","v":"NHS Greater Huddersfield CCG"}]
[null,null,null,null,null,null,null,null,"NHS Greater Preston CCG",1,{"$f":"IF(J160=1,COUNTIF($J$2:$J160,1),\"\")","v":159},{"$f":"IFERROR(INDEX($I$2:$I$381,MATCH(ROWS($K$2:$K160),$K$2:$K$381,0)),\"\")","v":"NHS Greater Preston CCG"}]
[null,null,null,null,null,null,null,null,"NHS Halton CCG",1,{"$f":"IF(J161=1,COUNTIF($J$2:$J161,1),\"\")","v":160},{"$f":"IFERROR(INDEX($I$2:$I$381,MATCH(ROWS($K$2:$K161),$K$2:$K$381,0)),\"\")","v":"NHS Halton CCG"}]
[null,null,null,null,null,null,null,null,"NHS Hammersmith And Fulham CCG",1,{"$f":"IF(J162=1,COUNTIF($J$2:$J162,1),\"\")","v":161},{"$f":"IFERROR(INDEX($I$2:$I$381,MATCH(ROWS($K$2:$K162),$K$2:$K$381,0)),\"\")","v":"NHS Hammersmith And Fulham CCG"}]
[null,null,null,null,null,null,null,null,"NHS Hampshire, Southampton And Isle Of Wight CCG",1,{"$f":"IF(J163=1,COUNTIF($J$2:$J163,1),\"\")","v":162},{"$f":"IFERROR(INDEX($I$2:$I$381,MATCH(ROWS($K$2:$K163),$K$2:$K$381,0)),\"\")","v":"NHS Hampshire, Southampton And Isle Of Wight CCG"}]
[null,null,null,null,null,null,null,null,"NHS Hardwick CCG",1,{"$f":"IF(J164=1,COUNTIF($J$2:$J164,1),\"\")","v":163},{"$f":"IFERROR(INDEX($I$2:$I$381,MATCH(ROWS($K$2:$K164),$K$2:$K$381,0)),\"\")","v":"NHS Hardwick CCG"}]
[null,null,null,null,null,null,null,null,"NHS Havering CCG",1,{"$f":"IF(J165=1,COUNTIF($J$2:$J165,1),\"\")","v":164},{"$f":"IFERROR(INDEX($I$2:$I$381,MATCH(ROWS($K$2:$K165),$K$2:$K$381,0)),\"\")","v":"NHS Havering CCG"}]
[null,null,null,null,null,null,null,null,"NHS Herefordshire And Worcestershire CCG",1,{"$f":"IF(J166=1,COUNTIF($J$2:$J166,1),\"\")","v":165},{"$f":"IFERROR(INDEX($I$2:$I$381,MATCH(ROWS($K$2:$K166),$K$2:$K$381,0)),\"\")","v":"NHS Herefordshire And Worcestershire CCG"}]
[null,null,null,null,null,null,null,null,"NHS Herts Valleys CCG",1,{"$f":"IF(J167=1,COUNTIF($J$2:$J167,1),\"\")","v":166},{"$f":"IFERROR(INDEX($I$2:$I$381,MATCH(ROWS($K$2:$K167),$K$2:$K$381,0)),\"\")","v":"NHS Herts Valleys CCG"}]
[null,null,null,null,null,null,null,null,"NHS Heywood, Middleton And Rochdale CCG",1,{"$f":"IF(J168=1,COUNTIF($J$2:$J168,1),\"\")","v":167},{"$f":"IFERROR(INDEX($I$2:$I$381,MATCH(ROWS($K$2:$K168),$K$2:$K$381,0)),\"\")","v":"NHS Heywood, Middleton And Rochdale CCG"}]
[null,null,null,null,null,null,null,null,"NHS Hillingdon CCG",1,{"$f":"IF(J169=1,COUNTIF($J$2:$J169,1),\"\")","v":168},{"$f":"IFERROR(INDEX($I$2:$I$381,MATCH(ROWS($K$2:$K169),$K$2:$K$381,0)),\"\")","v":"NHS Hillingdon CCG"}]
[null,null,null,null,null,null,null,null,"NHS Hounslow CCG",1,{"$f":"IF(J170=1,COUNTIF($J$2:$J170,1),\"\")","v":169},{"$f":"IFERROR(INDEX($I$2:$I$381,MATCH(ROWS($K$2:$K170),$K$2:$K$381,0)),\"\")","v":"NHS Hounslow CCG"}]
[null,null,null,null,null,null,null,null,"NHS Hull CCG",1,{"$f":"IF(J171=1,COUNTIF($J$2:$J171,1),\"\")","v":170},{"$f":"IFERROR(INDEX($I$2:$I$381,MATCH(ROWS($K$2:$K171),$K$2:$K$381,0)),\"\")","v":"NHS Hull CCG"}]
[null,null,null,null,null,null,null,null,"NHS Ipswich And East Suffolk CCG",1,{"$f":"IF(J172=1,COUNTIF($J$2:$J172,1),\"\")","v":171},{"$f":"IFERROR(INDEX($I$2:$I$381,MATCH(ROWS($K$2:$K172),$K$2:$K$381,0)),\"\")","v":"NHS Ipswich And East Suffolk CCG"}]
[null,null,null,null,null,null,null,null,"NHS Isle Of Wight CCG",1,{"$f":"IF(J173=1,COUNTIF($J$2:$J173,1),\"\")","v":172},{"$f":"IFERROR(INDEX($I$2:$I$381,MATCH(ROWS($K$2:$K173),$K$2:$K$381,0)),\"\")","v":"NHS Isle Of Wight CCG"}]
[null,null,null,null,null,null,null,null,"NHS Kent And Medway CCG",1,{"$f":"IF(J174=1,COUNTIF($J$2:$J174,1),\"\")","v":173},{"$f":"IFERROR(INDEX($I$2:$I$381,MATCH(ROWS($K$2:$K174),$K$2:$K$381,0)),\"\")","v":"NHS Kent And Medway CCG"}]
[null,null,null,null,null,null,null,null,"NHS Kernow CCG",1,{"$f":"IF(J175=1,COUNTIF($J$2:$J175,1),\"\")","v":174},{"$f":"IFERROR(INDEX($I$2:$I$381,MATCH(ROWS($K$2:$K175),$K$2:$K$381,0)),\"\")","v":"NHS Kernow CCG"}]
[null,null,null,null,null,null,null,null,"NHS Kirklees CCG",1,{"$f":"IF(J176=1,COUNTIF($J$2:$J176,1),\"\")","v":175},{"$f":"IFERROR(INDEX($I$2:$I$381,MATCH(ROWS($K$2:$K176),$K$2:$K$381,0)),\"\")","v":"NHS Kirklees CCG"}]
[null,null,null,null,null,null,null,null,"NHS Knowsley CCG",1,{"$f":"IF(J177=1,COUNTIF($J$2:$J177,1),\"\")","v":176},{"$f":"IFERROR(INDEX($I$2:$I$381,MATCH(ROWS($K$2:$K177),$K$2:$K$381,0)),\"\")","v":"NHS Knowsley CCG"}]
[null,null,null,null,null,null,null,null,"NHS Leeds CCG",1,{"$f":"IF(J178=1,COUNTIF($J$2:$J178,1),\"\")","v":177},{"$f":"IFERROR(INDEX($I$2:$I$381,MATCH(ROWS($K$2:$K178),$K$2:$K$381,0)),\"\")","v":"NHS Leeds CCG"}]
[null,null,null,null,null,null,null,null,"NHS Leeds North CCG",1,{"$f":"IF(J179=1,COUNTIF($J$2:$J179,1),\"\")","v":178},{"$f":"IFERROR(INDEX($I$2:$I$381,MATCH(ROWS($K$2:$K179),$K$2:$K$381,0)),\"\")","v":"NHS Leeds North CCG"}]
[null,null,null,null,null,null,null,null,"NHS Leeds South And East CCG",1,{"$f":"IF(J180=1,COUNTIF($J$2:$J180,1),\"\")","v":179},{"$f":"IFERROR(INDEX($I$2:$I$381,MATCH(ROWS($K$2:$K180),$K$2:$K$381,0)),\"\")","v":"NHS Leeds South And East CCG"}]
[null,null,null,null,null,null,null,null,"NHS Leeds West CCG",1,{"$f":"IF(J181=1,COUNTIF($J$2:$J181,1),\"\")","v":180},{"$f":"IFERROR(INDEX($I$2:$I$381,MATCH(ROWS($K$2:$K181),$K$2:$K$381,0)),\"\")","v":"NHS Leeds West CCG"}]
[null,null,null,null,null,null,null,null,"NHS Leicester City CCG",1,{"$f":"IF(J182=1,COUNTIF($J$2:$J182,1),\"\")","v":181},{"$f":"IFERROR(INDEX($I$2:$I$381,MATCH(ROWS($K$2:$K182),$K$2:$K$381,0)),\"\")","v":"NHS Leicester City CCG"}]
[null,null,null,null,null,null,null,null,"NHS Lincolnshire CCG",1,{"$f":"IF(J183=1,COUNTIF($J$2:$J183,1),\"\")","v":182},{"$f":"IFERROR(INDEX($I$2:$I$381,MATCH(ROWS($K$2:$K183),$K$2:$K$381,0)),\"\")","v":"NHS Lincolnshire CCG"}]
[null,null,null,null,null,null,null,null,"NHS Liverpool CCG",1,{"$f":"IF(J184=1,COUNTIF($J$2:$J184,1),\"\")","v":183},{"$f":"IFERROR(INDEX($I$2:$I$381,MATCH(ROWS($K$2:$K184),$K$2:$K$381,0)),\"\")","v":"NHS Liverpool CCG"}]
[null,null,null,null,null,null,null,null,"NHS Luton CCG",1,{"$f":"IF(J185=1,COUNTIF($J$2:$J185,1),\"\")","v":184},{"$f":"IFERROR(INDEX($I$2:$I$381,MATCH(ROWS($K$2:$K185),$K$2:$K$381,0)),\"\")","v":"NHS Luton CCG"}]
[null,null,null,null,null,null,null,null,"NHS Manchester CCG",1,{"$f":"IF(J186=1,COUNTIF($J$2:$J186,1),\"\")","v":185},{"$f":"IFERROR(INDEX($I$2:$I$381,MATCH(ROWS($K$2:$K186),$K$2:$K$381,0)),\"\")","v":"NHS Manchester CCG"}]
[null,null,null,null,null,null,null,null,"NHS Mid Essex CCG",1,{"$f":"IF(J187=1,COUNTIF($J$2:$J187,1),\"\")","v":186},{"$f":"IFERROR(INDEX($I$2:$I$381,MATCH(ROWS($K$2:$K187),$K$2:$K$381,0)),\"\")","v":"NHS Mid Essex CCG"}]
[null,null,null,null,null,null,null,null,"NHS Milton Keynes CCG",1,{"$f":"IF(J188=1,COUNTIF($J$2:$J188,1),\"\")","v":187},{"$f":"IFERROR(INDEX($I$2:$I$381,MATCH(ROWS($K$2:$K188),$K$2:$K$381,0)),\"\")","v":"NHS Milton Keynes CCG"}]
[null,null,null,null,null,null,null,null,"NHS Morecambe Bay CCG",1,{"$f":"IF(J189=1,COUNTIF($J$2:$J189,1),\"\")","v":188},{"$f":"IFERROR(INDEX($I$2:$I$381,MATCH(ROWS($K$2:$K189),$K$2:$K$381,0)),\"\")","v":"NHS Morecambe Bay CCG"}]
[null,null,null,null,null,null,null,null,"NHS Newcastle Gateshead CCG",1,{"$f":"IF(J190=1,COUNTIF($J$2:$J190,1),\"\")","v":189},{"$f":"IFERROR(INDEX($I$2:$I$381,MATCH(ROWS($K$2:$K190),$K$2:$K$381,0)),\"\")","v":"NHS Newcastle Gateshead CCG"}]
[null,null,null,null,null,null,null,null,"NHS Newcastle North And East CCG",1,{"$f":"IF(J191=1,COUNTIF($J$2:$J191,1),\"\")","v":190},{"$f":"IFERROR(INDEX($I$2:$I$381,MATCH(ROWS($K$2:$K191),$K$2:$K$381,0)),\"\")","v":"NHS Newcastle North And East CCG"}]
[null,null,null,null,null,null,null,null,"NHS Newcastle West CCG",1,{"$f":"IF(J192=1,COUNTIF($J$2:$J192,1),\"\")","v":191},{"$f":"IFERROR(INDEX($I$2:$I$381,MATCH(ROWS($K$2:$K192),$K$2:$K$381,0)),\"\")","v":"NHS Newcastle West CCG"}]
[null,null,null,null,null,null,null,null,"NHS Newham CCG",1,{"$f":"IF(J193=1,COUNTIF($J$2:$J193,1),\"\")","v":192},{"$f":"IFERROR(INDEX($I$2:$I$381,MATCH(ROWS($K$2:$K193),$K$2:$K$381,0)),\"\")","v":"NHS Newham CCG"}]
[null,null,null,null,null,null,null,null,"NHS Norfolk And Waveney CCG",1,{"$f":"IF(J194=1,COUNTIF($J$2:$J194,1),\"\")","v":193},{"$f":"IFERROR(INDEX($I$2:$I$381,MATCH(ROWS($K$2:$K194),$K$2:$K$381,0)),\"\")","v":"NHS Norfolk And Waveney CCG"}]
[null,null,null,null,null,null,null,null,"NHS North Central London CCG",{"$f":"--ISNUMBER(SEARCH($P$1,I195))","v":1},{"$f":"IF(J195=1,COUNTIF($J$2:$J195,1),\"\")","v":194},{"$f":"IFERROR(INDEX($I$2:$I$381,MATCH(ROWS($K$2:$K195),$K$2:$K$381,0)),\"\")","v":"NHS North Central London CCG"}]
[null,null,null,null,null,null,null,null,"NHS North Cumbria CCG",1,{"$f":"IF(J196=1,COUNTIF($J$2:$J196,1),\"\")","v":195},{"$f":"IFERROR(INDEX($I$2:$I$381,MATCH(ROWS($K$2:$K196),$K$2:$K$381,0)),\"\")","v":"NHS North Cumbria CCG"}]
[null,null,null,null,null,null,null,null,"NHS North Derbyshire CCG",1,{"$f":"IF(J197=1,COUNTIF($J$2:$J197,1),\"\")","v":196},{"$f":"IFERROR(INDEX($I$2:$I$381,MATCH(ROWS($K$2:$K197),$K$2:$K$381,0)),\"\")","v":"NHS North Derbyshire CCG"}]
[null,null,null,null,null,null,null,null,"NHS North East Essex CCG",1,{"$f":"IF(J198=1,COUNTIF($J$2:$J198,1),\"\")","v":197},{"$f":"IFERROR(INDEX($I$2:$I$381,MATCH(ROWS($K$2:$K198),$K$2:$K$381,0)),\"\")","v":"NHS North East Essex CCG"}]
[null,null,null,null,null,null,null,null,"NHS North East Hampshire And Farnham CCG",1,{"$f":"IF(J199=1,COUNTIF($J$2:$J199,1),\"\")","v":198},{"$f":"IFERROR(INDEX($I$2:$I$381,MATCH(ROWS($K$2:$K199),$K$2:$K$381,0)),\"\")","v":"NHS North East Hampshire And Farnham CCG"}]
[null,null,null,null,null,null,null,null,"NHS North East Lincolnshire CCG",1,{"$f":"IF(J200=1,COUNTIF($J$2:$J200,1),\"\")","v":199},{"$f":"IFERROR(INDEX($I$2:$I$381,MATCH(ROWS($K$2:$K200),$K$2:$K$381,0)),\"\")","v":"NHS North East Lincolnshire CCG"}]
[null,null,null,null,null,null,null,null,"NHS North East London CCG",1,{"$f":"IF(J201=1,COUNTIF($J$2:$J201,1),\"\")","v":200},{"$f":"IFERROR(INDEX($I$2:$I$381,MATCH(ROWS($K$2:$K201),$K$2:$K$381,0)),\"\")","v":"NHS North East London CCG"}]
[null,null,null,null,null,null,null,null,"NHS North Hampshire CCG",1,{"$f":"IF(J202=1,COUNTIF($J$2:$J202,1),\"\")","v":201},{"$f":"IFERROR(INDEX($I$2:$I$381,MATCH(ROWS($K$2:$K202),$K$2:$K$381,0)),\"\")","v":"NHS North Hampshire CCG"}]
[null,null,null,null,null,null,null,null,"NHS North Kirklees CCG",1,{"$f":"IF(J203=1,COUNTIF($J$2:$J203,1),\"\")","v":202},{"$f":"IFERROR(INDEX($I$2:$I$381,MATCH(ROWS($K$2:$K203),$K$2:$K$381,0)),\"\")","v":"NHS North Kirklees CCG"}]
[null,null,null,null,null,null,null,null,"NHS North Lincolnshire CCG",1,{"$f":"IF(J204=1,COUNTIF($J$2:$J204,1),\"\")","v":203},{"$f":"IFERROR(INDEX($I$2:$I$381,MATCH(ROWS($K$2:$K204),$K$2:$K$381,0)),\"\")","v":"NHS North Lincolnshire CCG"}]
[null,null,null,null,null,null,null,null,"NHS North Manchester CCG",1,{"$f":"IF(J205=1,COUNTIF($J$2:$J205,1),\"\")","v":204},{"$f":"IFERROR(INDEX($I$2:$I$381,MATCH(ROWS($K$2:$K205),$K$2:$K$381,0)),\"\")","v":"NHS North Manchester CCG"}]
[null,null,null,null,null,null,null,null,"NHS North Staffordshire CCG",1,{"$f":"IF(J206=1,COUNTIF($J$2:$J206,1),\"\")","v":205},{"$f":"IFERROR(INDEX($I$2:$I$381,MATCH(ROWS($K$2:$K206),$K$2:$K$381,0)),\"\")","v":"NHS North Staffordshire CCG"}]
[null,null,null,null,null,null,null,null,"NHS North Tyneside CCG",1,{"$f":"IF(J207=1,COUNTIF($J$2:$J207,1),\"\")","v":206},{"$f":"IFERROR(INDEX($I$2:$I$381,MATCH(ROWS($K$2:$K207),$K$2:$K$381,0)),\"\")","v":"NHS North Tyneside CCG"}]
[null,null,null,null,null,null,null,null,"NHS North West London CCG",1,{"$f":"IF(J208=1,COUNTIF($J$2:$J208,1),\"\")","v":207},{"$f":"IFERROR(INDEX($I$2:$I$381,MATCH(ROWS($K$2:$K208),$K$2:$K$381,0)),\"\")","v":"NHS North West London CCG"}]
[null,null,null,null,null,null,null,null,"NHS North Yorkshire CCG",1,{"$f":"IF(J209=1,COUNTIF($J$2:$J209,1),\"\")","v":208},{"$f":"IFERROR(INDEX($I$2:$I$381,MATCH(ROWS($K$2:$K209),$K$2:$K$381,0)),\"\")","v":"NHS North Yorkshire CCG"}]
[null,null,null,null,null,null,null,null,"NHS Northamptonshire CCG",1,{"$f":"IF(J210=1,COUNTIF($J$2:$J210,1),\"\")","v":209},{"$f":"IFERROR(INDEX($I$2:$I$381,MATCH(ROWS($K$2:$K210),$K$2:$K$381,0)),\"\")","v":"NHS Northamptonshire CCG"}]
[null,null,null,null,null,null,null,null,"NHS Northumberland CCG",1,{"$f":"IF(J211=1,COUNTIF($J$2:$J211,1),\"\")","v":210},{"$f":"IFERROR(INDEX($I$2:$I$381,MATCH(ROWS($K$2:$K211),$K$2:$K$381,0)),\"\")","v":"NHS Northumberland CCG"}]
[null,null,null,null,null,null,null,null,"NHS Nottingham And Nottinghamshire CCG",1,{"$f":"IF(J212=1,COUNTIF($J$2:$J212,1),\"\")","v":211},{"$f":"IFERROR(INDEX($I$2:$I$381,MATCH(ROWS($K$2:$K212),$K$2:$K$381,0)),\"\")","v":"NHS Nottingham And Nottinghamshire CCG"}]
[null,null,null,null,null,null,null,null,"NHS Oldham CCG",1,{"$f":"IF(J213=1,COUNTIF($J$2:$J213,1),\"\")","v":212},{"$f":"IFERROR(INDEX($I$2:$I$381,MATCH(ROWS($K$2:$K213),$K$2:$K$381,0)),\"\")","v":"NHS Oldham CCG"}]
[null,null,null,null,null,null,null,null,"NHS Oxfordshire CCG",1,{"$f":"IF(J214=1,COUNTIF($J$2:$J214,1),\"\")","v":213},{"$f":"IFERROR(INDEX($I$2:$I$381,MATCH(ROWS($K$2:$K214),$K$2:$K$381,0)),\"\")","v":"NHS Oxfordshire CCG"}]
[null,null,null,null,null,null,null,null,"NHS Portsmouth CCG",1,{"$f":"IF(J215=1,COUNTIF($J$2:$J215,1),\"\")","v":214},{"$f":"IFERROR(INDEX($I$2:$I$381,MATCH(ROWS($K$2:$K215),$K$2:$K$381,0)),\"\")","v":"NHS Portsmouth CCG"}]
[null,null,null,null,null,null,null,null,"NHS Redbridge CCG",1,{"$f":"IF(J216=1,COUNTIF($J$2:$J216,1),\"\")","v":215},{"$f":"IFERROR(INDEX($I$2:$I$381,MATCH(ROWS($K$2:$K216),$K$2:$K$381,0)),\"\")","v":"NHS Redbridge CCG"}]
[null,null,null,null,null,null,null,null,"NHS Rotherham CCG",1,{"$f":"IF(J217=1,COUNTIF($J$2:$J217,1),\"\")","v":216},{"$f":"IFERROR(INDEX($I$2:$I$381,MATCH(ROWS($K$2:$K217),$K$2:$K$381,0)),\"\")","v":"NHS Rotherham CCG"}]
[null,null,null,null,null,null,null,null,"NHS Salford CCG",1,{"$f":"IF(J218=1,COUNTIF($J$2:$J218,1),\"\")","v":217},{"$f":"IFERROR(INDEX($I$2:$I$381,MATCH(ROWS($K$2:$K218),$K$2:$K$381,0)),\"\")","v":"NHS Salford CCG"}]
[null,null,null,null,null,null,null,null,"NHS Sandwell And West Birmingham CCG",1,{"$f":"IF(J219=1,COUNTIF($J$2:$J219,1),\"\")","v":218},{"$f":"IFERROR(INDEX($I$2:$I$381,MATCH(ROWS($K$2:$K219),$K$2:$K$381,0)),\"\")","v":"NHS Sandwell And West Birmingham CCG"}]
[null,null,null,null,null,null,null,null,"NHS Sheffield CCG",1,{"$f":"IF(J220=1,COUNTIF($J$2:$J220,1),\"\")","v":219},{"$f":"IFERROR(INDEX($I$2:$I$381,MATCH(ROWS($K$2:$K220),$K$2:$K$381,0)),\"\")","v":"NHS Sheffield CCG"}]
[null,null,null,null,null,null,null,null,"NHS Shropshire CCG",1,{"$f":"IF(J221=1,COUNTIF($J$2:$J221,1),\"\")","v":220},{"$f":"IFERROR(INDEX($I$2:$I$381,MATCH(ROWS($K$2:$K221),$K$2:$K$381,0)),\"\")","v":"NHS Shropshire CCG"}]
[null,null,null,null,null,null,null,null,"NHS Shropshire, Telford and Wrekin CCG",1,{"$f":"IF(J222=1,COUNTIF($J$2:$J222,1),\"\")","v":221},{"$f":"IFERROR(INDEX($I$2:$I$381,MATCH(ROWS($K$2:$K222),$K$2:$K$381,0)),\"\")","v":"NHS Shropshire, Telford and Wrekin CCG"}]
[null,null,null,null,null,null,null,null,"NHS Somerset CCG",1,{"$f":"IF(J223=1,COUNTIF($J$2:$J223,1),\"\")","v":222},{"$f":"IFERROR(INDEX($I$2:$I$381,MATCH(ROWS($K$2:$K223),$K$2:$K$381,0)),\"\")","v":"NHS Somerset CCG"}]
[null,null,null,null,null,null,null,null,"NHS South East London CCG",1,{"$f":"IF(J224=1,COUNTIF($J$2:$J224,1),\"\")","v":223},{"$f":"IFERROR(INDEX($I$2:$I$381,MATCH(ROWS($K$2:$K224),$K$2:$K$381,0)),\"\")","v":"NHS South East London CCG"}]
[null,null,null,null,null,null,null,null,"NHS South East Staffordshire And Seisdon Peninsula CCG",1,{"$f":"IF(J225=1,COUNTIF($J$2:$J225,1),\"\")","v":224},{"$f":"IFERROR(INDEX($I$2:$I$381,MATCH(ROWS($K$2:$K225),$K$2:$K$381,0)),\"\")","v":"NHS South East Staffordshire And Seisdon Peninsula CCG"}]
[null,null,null,null,null,null,null,null,"NHS South Eastern Hampshire CCG",1,{"$f":"IF(J226=1,COUNTIF($J$2:$J226,1),\"\")","v":225},{"$f":"IFERROR(INDEX($I$2:$I$381,MATCH(ROWS($K$2:$K226),$K$2:$K$381,0)),\"\")","v":"NHS South Eastern Hampshire CCG"}]
[null,null,null,null,null,null,null,null,"NHS South Manchester CCG",1,{"$f":"IF(J227=1,COUNTIF($J$2:$J227,1),\"\")","v":226},{"$f":"IFERROR(INDEX($I$2:$I$381,MATCH(ROWS($K$2:$K227),$K$2:$K$381,0)),\"\")","v":"NHS South Manchester CCG"}]
[null,null,null,null,null,null,null,null,"NHS South Sefton CCG",1,{"$f":"IF(J228=1,COUNTIF($J$2:$J228,1),\"\")","v":227},{"$f":"IFERROR(INDEX($I$2:$I$381,MATCH(ROWS($K$2:$K228),$K$2:$K$381,0)),\"\")","v":"NHS South Sefton CCG"}]
[null,null,null,null,null,null,null,null,"NHS South Tyneside CCG",1,{"$f":"IF(J229=1,COUNTIF($J$2:$J229,1),\"\")","v":228},{"$f":"IFERROR(INDEX($I$2:$I$381,MATCH(ROWS($K$2:$K229),$K$2:$K$381,0)),\"\")","v":"NHS South Tyneside CCG"}]
[null,null,null,null,null,null,null,null,"NHS South Warwickshire CCG",1,{"$f":"IF(J230=1,COUNTIF($J$2:$J230,1),\"\")","v":229},{"$f":"IFERROR(INDEX($I$2:$I$381,MATCH(ROWS($K$2:$K230),$K$2:$K$381,0)),\"\")","v":"NHS South Warwickshire CCG"}]
[null,null,null,null,null,null,null,null,"NHS South West London CCG",1,{"$f":"IF(J231=1,COUNTIF($J$2:$J231,1),\"\")","v":230},{"$f":"IFERROR(INDEX($I$2:$I$381,MATCH(ROWS($K$2:$K231),$K$2:$K$381,0)),\"\")","v":"NHS South West London CCG"}]
[null,null,null,null,null,null,null,null,"NHS Southend CCG",1,{"$f":"IF(J232=1,COUNTIF($J$2:$J232,1),\"\")","v":231},{"$f":"IFERROR(INDEX($I$2:$I$381,MATCH(ROWS($K$2:$K232),$K$2:$K$381,0)),\"\")","v":"NHS Southend CCG"}]
[null,null,null,null,null,null,null,null,"NHS Southern Derbyshire CCG",1,{"$f":"IF(J233=1,COUNTIF($J$2:$J233,1),\"\")","v":232},{"$f":"IFERROR(INDEX($I$2:$I$381,MATCH(ROWS($K$2:$K233),$K$2:$K$381,0)),\"\")","v":"NHS Southern Derbyshire CCG"}]
[null,null,null,null,null,null,null,null,"NHS Southport And Formby CCG",1,{"$f":"IF(J234=1,COUNTIF($J$2:$J234,1),\"\")","v":233},{"$f":"IFERROR(INDEX($I$2:$I$381,MATCH(ROWS($K$2:$K234),$K$2:$K$381,0)),\"\")","v":"NHS Southport And Formby CCG"}]
[null,null,null,null,null,null,null,null,"NHS St Helens CCG",1,{"$f":"IF(J235=1,COUNTIF($J$2:$J235,1),\"\")","v":234},{"$f":"IFERROR(INDEX($I$2:$I$381,MATCH(ROWS($K$2:$K235),$K$2:$K$381,0)),\"\")","v":"NHS St Helens CCG"}]
[null,null,null,null,null,null,null,null,"NHS Stafford And Surrounds CCG",1,{"$f":"IF(J236=1,COUNTIF($J$2:$J236,1),\"\")","v":235},{"$f":"IFERROR(INDEX($I$2:$I$381,MATCH(ROWS($K$2:$K236),$K$2:$K$381,0)),\"\")","v":"NHS Stafford And Surrounds CCG"}]
[null,null,null,null,null,null,null,null,"NHS Stockport CCG",1,{"$f":"IF(J237=1,COUNTIF($J$2:$J237,1),\"\")","v":236},{"$f":"IFERROR(INDEX($I$2:$I$381,MATCH(ROWS($K$2:$K237),$K$2:$K$381,0)),\"\")","v":"NHS Stockport CCG"}]
[null,null,null,null,null,null,null,null,"NHS Stoke On Trent CCG",1,{"$f":"IF(J238=1,COUNTIF($J$2:$J238,1),\"\")","v":237},{"$f":"IFERROR(INDEX($I$2:$I$381,MATCH(ROWS($K$2:$K238),$K$2:$K$381,0)),\"\")","v":"NHS Stoke On Trent CCG"}]
[null,null,null,null,null,null,null,null,"NHS Sunderland CCG",1,{"$f":"IF(J239=1,COUNTIF($J$2:$J239,1),\"\")","v":238},{"$f":"IFERROR(INDEX($I$2:$I$381,MATCH(ROWS($K$2:$K239),$K$2:$K$381,0)),\"\")","v":"NHS Sunderland CCG"}]
[null,null,null,null,null,null,null,null,"NHS Surrey Heartlands CCG",1,{"$f":"IF(J240=1,COUNTIF($J$2:$J240,1),\"\")","v":239},{"$f":"IFERROR(INDEX($I$2:$I$381,MATCH(ROWS($K$2:$K240),$K$2:$K$381,0)),\"\")","v":"NHS Surrey Heartlands CCG"}]
[null,null,null,null,null,null,null,null,"NHS Surrey Heath CCG",1,{"$f":"IF(J241=1,COUNTIF($J$2:$J241,1),\"\")","v":240},{"$f":"IFERROR(INDEX($I$2:$I$381,MATCH(ROWS($K$2:$K241),$K$2:$K$381,0)),\"\")","v":"NHS Surrey Heath CCG"}]
[null,null,null,null,null,null,null,null,"NHS Tameside And Glossop CCG",1,{"$f":"IF(J242=1,COUNTIF($J$2:$J242,1),\"\")","v":241},{"$f":"IFERROR(INDEX($I$2:$I$381,MATCH(ROWS($K$2:$K242),$K$2:$K$381,0)),\"\")","v":"NHS Tameside And Glossop CCG"}]
[null,null,null,null,null,null,null,null,"NHS Tees Valley CCG",1,{"$f":"IF(J243=1,COUNTIF($J$2:$J243,1),\"\")","v":242},{"$f":"IFERROR(INDEX($I$2:$I$381,MATCH(ROWS($K$2:$K243),$K$2:$K$381,0)),\"\")","v":"NHS Tees Valley CCG"}]
[null,null,null,null,null,null,null,null,"NHS Telford And Wrekin CCG",1,{"$f":"IF(J244=1,COUNTIF($J$2:$J244,1),\"\")","v":243},{"$f":"IFERROR(INDEX($I$2:$I$381,MATCH(ROWS($K$2:$K244),$K$2:$K$381,0)),\"\")","v":"NHS Telford And Wrekin CCG"}]
[null,null,null,null,null,null,null,null,"NHS Thurrock CCG",1,{"$f":"IF(J245=1,COUNTIF($J$2:$J245,1),\"\")","v":244},{"$f":"IFERROR(INDEX($I$2:$I$381,MATCH(ROWS($K$2:$K245),$K$2:$K$381,0)),\"\")","v":"NHS Thurrock CCG"}]
[null,null,null,null,null,null,null,null,"NHS Tower Hamlets CCG",1,{"$f":"IF(J246=1,COUNTIF($J$2:$J246,1),\"\")","v":245},{"$f":"IFERROR(INDEX($I$2:$I$381,MATCH(ROWS($K$2:$K246),$K$2:$K$381,0)),\"\")","v":"NHS Tower Hamlets CCG"}]
[null,null,null,null,null,null,null,null,"NHS Trafford CCG",1,{"$f":"IF(J247=1,COUNTIF($J$2:$J247,1),\"\")","v":246},{"$f":"IFERROR(INDEX($I$2:$I$381,MATCH(ROWS($K$2:$K247),$K$2:$K$381,0)),\"\")","v":"NHS Trafford CCG"}]
[null,null,null,null,null,null,null,null,"NHS Vale Of York CCG",1,{"$f":"IF(J248=1,COUNTIF($J$2:$J248,1),\"\")","v":247},{"$f":"IFERROR(INDEX($I$2:$I$381,MATCH(ROWS($K$2:$K248),$K$2:$K$381,0)),\"\")","v":"NHS Vale Of York CCG"}]
[null,null,null,null,null,null,null,null,"NHS Wakefield CCG",1,{"$f":"IF(J249=1,COUNTIF($J$2:$J249,1),\"\")","v":248},{"$f":"IFERROR(INDEX($I$2:$I$381,MATCH(ROWS($K$2:$K249),$K$2:$K$381,0)),\"\")","v":"NHS Wakefield CCG"}]
[null,null,null,null,null,null,null,null,"NHS Walsall CCG",1,{"$f":"IF(J250=1,COUNTIF($J$2:$J250,1),\"\")","v":249},{"$f":"IFERROR(INDEX($I$2:$I$381,MATCH(ROWS($K$2:$K250),$K$2:$K$381,0)),\"\")","v":"NHS Walsall CCG"}]
[null,null,null,null,null,null,null,null,"NHS Waltham Forest CCG",1,{"$f":"IF(J251=1,COUNTIF($J$2:$J251,1),\"\")","v":250},{"$f":"IFERROR(INDEX($I$2:$I$381,MATCH(ROWS($K$2:$K251),$K$2:$K$381,0)),\"\")","v":"NHS Waltham Forest CCG"}]
[null,null,null,null,null,null,null,null,"NHS Warrington CCG",1,{"$f":"IF(J252=1,COUNTIF($J$2:$J252,1),\"\")","v":251},{"$f":"IFERROR(INDEX($I$2:$I$381,MATCH(ROWS($K$2:$K252),$K$2:$K$381,0)),\"\")","v":"NHS Warrington CCG"}]
[null,null,null,null,null,null,null,null,"NHS Warwickshire North CCG",1,{"$f":"IF(J253=1,COUNTIF($J$2:$J253,1),\"\")","v":252},{"$f":"IFERROR(INDEX($I$2:$I$381,MATCH(ROWS($K$2:$K253),$K$2:$K$381,0)),\"\")","v":"NHS Warwickshire North CCG"}]
[null,null,null,null,null,null,null,null,"NHS West Essex CCG",1,{"$f":"IF(J254=1,COUNTIF($J$2:$J254,1),\"\")","v":253},{"$f":"IFERROR(INDEX($I$2:$I$381,MATCH(ROWS($K$2:$K254),$K$2:$K$381,0)),\"\")","v":"NHS West Essex CCG"}]
[null,null,null,null,null,null,null,null,"NHS West Hampshire CCG",1,{"$f":"IF(J255=1,COUNTIF($J$2:$J255,1),\"\")","v":254},{"$f":"IFERROR(INDEX($I$2:$I$381,MATCH(ROWS($K$2:$K255),$K$2:$K$381,0)),\"\")","v":"NHS West Hampshire CCG"}]
[null,null,null,null,null,null,null,null,"NHS West Lancashire CCG",1,{"$f":"IF(J256=1,COUNTIF($J$2:$J256,1),\"\")","v":255},{"$f":"IFERROR(INDEX($I$2:$I$381,MATCH(ROWS($K$2:$K256),$K$2:$K$381,0)),\"\")","v":"NHS West Lancashire CCG"}]
[null,null,null,null,null,null,null,null,"NHS West Leicestershire CCG",1,{"$f":"IF(J257=1,COUNTIF($J$2:$J257,1),\"\")","v":256},{"$f":"IFERROR(INDEX($I$2:$I$381,MATCH(ROWS($K$2:$K257),$K$2:$K$381,0)),\"\")","v":"NHS West Leicestershire CCG"}]
[null,null,null,null,null,null,null,null,"NHS West London (K&C & Qpp) CCG",1,{"$f":"IF(J258=1,COUNTIF($J$2:$J258,1),\"\")","v":257},{"$f":"IFERROR(INDEX($I$2:$I$381,MATCH(ROWS($K$2:$K258),$K$2:$K$381,0)),\"\")","v":"NHS West London (K&C & Qpp) CCG"}]
[null,null,null,null,null,null,null,null,"NHS West Suffolk CCG",{"$f":"--ISNUMBER(SEARCH($P$1,I259))","v":1},{"$f":"IF(J259=1,COUNTIF($J$2:$J259,1),\"\")","v":258},{"$f":"IFERROR(INDEX($I$2:$I$381,MATCH(ROWS($K$2:$K259),$K$2:$K$381,0)),\"\")","v":"NHS West Suffolk CCG"}]
[null,null,null,null,null,null,null,null,"NHS West Sussex CCG",1,{"$f":"IF(J260=1,COUNTIF($J$2:$J260,1),\"\")","v":259},{"$f":"IFERROR(INDEX($I$2:$I$381,MATCH(ROWS($K$2:$K260),$K$2:$K$381,0)),\"\")","v":"NHS West Sussex CCG"}]
[null,null,null,null,null,null,null,null,"NHS Wigan Borough CCG",1,{"$f":"IF(J261=1,COUNTIF($J$2:$J261,1),\"\")","v":260},{"$f":"IFERROR(INDEX($I$2:$I$381,MATCH(ROWS($K$2:$K261),$K$2:$K$381,0)),\"\")","v":"NHS Wigan Borough CCG"}]
[null,null,null,null,null,null,null,null,"NHS Wirral CCG",1,{"$f":"IF(J262=1,COUNTIF($J$2:$J262,1),\"\")","v":261},{"$f":"IFERROR(INDEX($I$2:$I$381,MATCH(ROWS($K$2:$K262),$K$2:$K$381,0)),\"\")","v":"NHS Wirral CCG"}]
[null,null,null,null,null,null,null,null,"NHS Wolverhampton CCG",1,{"$f":"IF(J263=1,COUNTIF($J$2:$J263,1),\"\")","v":262},{"$f":"IFERROR(INDEX($I$2:$I$381,MATCH(ROWS($K$2:$K263),$K$2:$K$381,0)),\"\")","v":"NHS Wolverhampton CCG"}]
[null,null,null,null,null,null,null,null,"Norfolk and Norwich University Hospitals NHS Foundation Trust",1,{"$f":"IF(J264=1,COUNTIF($J$2:$J264,1),\"\")","v":263},{"$f":"IFERROR(INDEX($I$2:$I$381,MATCH(ROWS($K$2:$K264),$K$2:$K$381,0)),\"\")","v":"Norfolk and Norwich University Hospitals NHS Foundation Trust"}]
[null,null,null,null,null,null,null,null,"Norfolk and Suffolk NHS Foundation Trust",1,{"$f":"IF(J265=1,COUNTIF($J$2:$J265,1),\"\")","v":264},{"$f":"IFERROR(INDEX($I$2:$I$381,MATCH(ROWS($K$2:$K265),$K$2:$K$381,0)),\"\")","v":"Norfolk and Suffolk NHS Foundation Trust"}]
[null,null,null,null,null,null,null,null,"Norfolk Community Health and Care NHS Trust",1,{"$f":"IF(J266=1,COUNTIF($J$2:$J266,1),\"\")","v":265},{"$f":"IFERROR(INDEX($I$2:$I$381,MATCH(ROWS($K$2:$K266),$K$2:$K$381,0)),\"\")","v":"Norfolk Community Health and Care NHS Trust"}]
[null,null,null,null,null,null,null,null,"North Bristol NHS Trust",1,{"$f":"IF(J267=1,COUNTIF($J$2:$J267,1),\"\")","v":266},{"$f":"IFERROR(INDEX($I$2:$I$381,MATCH(ROWS($K$2:$K267),$K$2:$K$381,0)),\"\")","v":"North Bristol NHS Trust"}]
[null,null,null,null,null,null,null,null,"North Cumbria Integrated Care NHS Foundation Trust",1,{"$f":"IF(J268=1,COUNTIF($J$2:$J268,1),\"\")","v":267},{"$f":"IFERROR(INDEX($I$2:$I$381,MATCH(ROWS($K$2:$K268),$K$2:$K$381,0)),\"\")","v":"North Cumbria Integrated Care NHS Foundation Trust"}]
[null,null,null,null,null,null,null,null,"North East Ambulance Service NHS Foundation Trust",1,{"$f":"IF(J269=1,COUNTIF($J$2:$J269,1),\"\")","v":268},{"$f":"IFERROR(INDEX($I$2:$I$381,MATCH(ROWS($K$2:$K269),$K$2:$K$381,0)),\"\")","v":"North East Ambulance Service NHS Foundation Trust"}]
[null,null,null,null,null,null,null,null,"North East London NHS Foundation Trust",1,{"$f":"IF(J270=1,COUNTIF($J$2:$J270,1),\"\")","v":269},{"$f":"IFERROR(INDEX($I$2:$I$381,MATCH(ROWS($K$2:$K270),$K$2:$K$381,0)),\"\")","v":"North East London NHS Foundation Trust"}]
[null,null,null,null,null,null,null,null,"North Middlesex University Hospital NHS Trust",1,{"$f":"IF(J271=1,COUNTIF($J$2:$J271,1),\"\")","v":270},{"$f":"IFERROR(INDEX($I$2:$I$381,MATCH(ROWS($K$2:$K271),$K$2:$K$381,0)),\"\")","v":"North Middlesex University Hospital NHS Trust"}]
[null,null,null,null,null,null,null,null,"North Staffordshire Combined Healthcare NHS Trust",1,{"$f":"IF(J272=1,COUNTIF($J$2:$J272,1),\"\")","v":271},{"$f":"IFERROR(INDEX($I$2:$I$381,MATCH(ROWS($K$2:$K272),$K$2:$K$381,0)),\"\")","v":"North Staffordshire Combined Healthcare NHS Trust"}]
[null,null,null,null,null,null,null,null,"North Tees and Hartlepool NHS Foundation Trust",1,{"$f":"IF(J273=1,COUNTIF($J$2:$J273,1),\"\")","v":272},{"$f":"IFERROR(INDEX($I$2:$I$381,MATCH(ROWS($K$2:$K273),$K$2:$K$381,0)),\"\")","v":"North Tees and Hartlepool NHS Foundation Trust"}]
[null,null,null,null,null,null,null,null,"North West Ambulance Service NHS Trust",1,{"$f":"IF(J274=1,COUNTIF($J$2:$J274,1),\"\")","v":273},{"$f":"IFERROR(INDEX($I$2:$I$381,MATCH(ROWS($K$2:$K274),$K$2:$K$381,0)),\"\")","v":"North West Ambulance Service NHS Trust"}]
[null,null,null,null,null,null,null,null,"North West Anglia NHS Foundation Trust",1,{"$f":"IF(J275=1,COUNTIF($J$2:$J275,1),\"\")","v":274},{"$f":"IFERROR(INDEX($I$2:$I$381,MATCH(ROWS($K$2:$K275),$K$2:$K$381,0)),\"\")","v":"North West Anglia NHS Foundation Trust"}]
[null,null,null,null,null,null,null,null,"North West Boroughs Healthcare NHS Foundation Trust",1,{"$f":"IF(J276=1,COUNTIF($J$2:$J276,1),\"\")","v":275},{"$f":"IFERROR(INDEX($I$2:$I$381,MATCH(ROWS($K$2:$K276),$K$2:$K$381,0)),\"\")","v":"North West Boroughs Healthcare NHS Foundation Trust"}]
[null,null,null,null,null,null,null,null,"Northampton General Hospital NHS Trust",1,{"$f":"IF(J277=1,COUNTIF($J$2:$J277,1),\"\")","v":276},{"$f":"IFERROR(INDEX($I$2:$I$381,MATCH(ROWS($K$2:$K277),$K$2:$K$381,0)),\"\")","v":"Northampton General Hospital NHS Trust"}]
[null,null,null,null,null,null,null,null,"Northamptonshire Healthcare NHS Foundation Trust",1,{"$f":"IF(J278=1,COUNTIF($J$2:$J278,1),\"\")","v":277},{"$f":"IFERROR(INDEX($I$2:$I$381,MATCH(ROWS($K$2:$K278),$K$2:$K$381,0)),\"\")","v":"Northamptonshire Healthcare NHS Foundation Trust"}]
[null,null,null,null,null,null,null,null,"Northern Devon Healthcare NHS Trust",1,{"$f":"IF(J279=1,COUNTIF($J$2:$J279,1),\"\")","v":278},{"$f":"IFERROR(INDEX($I$2:$I$381,MATCH(ROWS($K$2:$K279),$K$2:$K$381,0)),\"\")","v":"Northern Devon Healthcare NHS Trust"}]
[null,null,null,null,null,null,null,null,"Northern Lincolnshire and Goole NHS Foundation Trust",1,{"$f":"IF(J280=1,COUNTIF($J$2:$J280,1),\"\")","v":279},{"$f":"IFERROR(INDEX($I$2:$I$381,MATCH(ROWS($K$2:$K280),$K$2:$K$381,0)),\"\")","v":"Northern Lincolnshire and Goole NHS Foundation Trust"}]
[null,null,null,null,null,null,null,null,"Northumbria Healthcare NHS Foundation Trust",1,{"$f":"IF(J281=1,COUNTIF($J$2:$J281,1),\"\")","v":280},{"$f":"IFERROR(INDEX($I$2:$I$381,MATCH(ROWS($K$2:$K281),$K$2:$K$381,0)),\"\")","v":"Northumbria Healthcare NHS Foundation Trust"}]
[null,null,null,null,null,null,null,null,"Nottingham University Hospitals NHS Trust",1,{"$f":"IF(J282=1,COUNTIF($J$2:$J282,1),\"\")","v":281},{"$f":"IFERROR(INDEX($I$2:$I$381,MATCH(ROWS($K$2:$K282),$K$2:$K$381,0)),\"\")","v":"Nottingham University Hospitals NHS Trust"}]
[null,null,null,null,null,null,null,null,"Nottinghamshire Healthcare NHS Foundation Trust",1,{"$f":"IF(J283=1,COUNTIF($J$2:$J283,1),\"\")","v":282},{"$f":"IFERROR(INDEX($I$2:$I$381,MATCH(ROWS($K$2:$K283),$K$2:$K$381,0)),\"\")","v":"Nottinghamshire Healthcare NHS Foundation Trust"}]
[null,null,null,null,null,null,null,null,"Oxford Health NHS Foundation Trust",1,{"$f":"IF(J284=1,COUNTIF($J$2:$J284,1),\"\")","v":283},{"$f":"IFERROR(INDEX($I$2:$I$381,MATCH(ROWS($K$2:$K284),$K$2:$K$381,0)),\"\")","v":"Oxford Health NHS Foundation Trust"}]
[null,null,null,null,null,null,null,null,"Oxford University Hospitals NHS Foundation Trust",1,{"$f":"IF(J285=1,COUNTIF($J$2:$J285,1),\"\")","v":284},{"$f":"IFERROR(INDEX($I$2:$I$381,MATCH(ROWS($K$2:$K285),$K$2:$K$381,0)),\"\")","v":"Oxford University Hospitals NHS Foundation Trust"}]
[null,null,null,null,null,null,null,null,"Oxleas NHS Foundation Trust",1,{"$f":"IF(J286=1,COUNTIF($J$2:$J286,1),\"\")","v":285},{"$f":"IFERROR(INDEX($I$2:$I$381,MATCH(ROWS($K$2:$K286),$K$2:$K$381,0)),\"\")","v":"Oxleas NHS Foundation Trust"}]
[null,null,null,null,null,null,null,null,"Pennine Acute Hospitals NHS Trust",1,{"$f":"IF(J287=1,COUNTIF($J$2:$J287,1),\"\")","v":286},{"$f":"IFERROR(INDEX($I$2:$I$381,MATCH(ROWS($K$2:$K287),$K$2:$K$381,0)),\"\")","v":"Pennine Acute Hospitals NHS Trust"}]
[null,null,null,null,null,null,null,null,"Pennine Care NHS Foundation Trust",1,{"$f":"IF(J288=1,COUNTIF($J$2:$J288,1),\"\")","v":287},{"$f":"IFERROR(INDEX($I$2:$I$381,MATCH(ROWS($K$2:$K288),$K$2:$K$381,0)),\"\")","v":"Pennine Care NHS Foundation Trust"}]
[null,null,null,null,null,null,null,null,"Poole Hospital NHS Foundation Trust",1,{"$f":"IF(J289=1,COUNTIF($J$2:$J289,1),\"\")","v":288},{"$f":"IFERROR(INDEX($I$2:$I$381,MATCH(ROWS($K$2:$K289),$K$2:$K$381,0)),\"\")","v":"Poole Hospital NHS Foundation Trust"}]
[null,null,null,null,null,null,null,null,"Portsmouth Hospitals NHS Trust",1,{"$f":"IF(J290=1,COUNTIF($J$2:$J290,1),\"\")","v":289},{"$f":"IFERROR(INDEX($I$2:$I$381,MATCH(ROWS($K$2:$K290),$K$2:$K$381,0)),\"\")","v":"Portsmouth Hospitals NHS Trust"}]
[null,null,null,null,null,null,null,null,"Project Nightingale NHS Trust",1,{"$f":"IF(J291=1,COUNTIF($J$2:$J291,1),\"\")","v":290},{"$f":"IFERROR(INDEX($I$2:$I$381,MATCH(ROWS($K$2:$K291),$K$2:$K$381,0)),\"\")","v":"Project Nightingale NHS Trust"}]
[null,null,null,null,null,null,null,null,"Queen Victoria Hospital NHS Foundation Trust",1,{"$f":"IF(J292=1,COUNTIF($J$2:$J292,1),\"\")","v":291},{"$f":"IFERROR(INDEX($I$2:$I$381,MATCH(ROWS($K$2:$K292),$K$2:$K$381,0)),\"\")","v":"Queen Victoria Hospital NHS Foundation Trust"}]
[null,null,null,null,null,null,null,null,"Robert Jones and Agnes Hunt Orthopaedic and District Hospital NHS Trust",1,{"$f":"IF(J293=1,COUNTIF($J$2:$J293,1),\"\")","v":292},{"$f":"IFERROR(INDEX($I$2:$I$381,MATCH(ROWS($K$2:$K293),$K$2:$K$381,0)),\"\")","v":"Robert Jones and Agnes Hunt Orthopaedic and District Hospital NHS Trust"}]
[null,null,null,null,null,null,null,null,"Rotherham Doncaster and South Humber NHS Foundation Trust",1,{"$f":"IF(J294=1,COUNTIF($J$2:$J294,1),\"\")","v":293},{"$f":"IFERROR(INDEX($I$2:$I$381,MATCH(ROWS($K$2:$K294),$K$2:$K$381,0)),\"\")","v":"Rotherham Doncaster and South Humber NHS Foundation Trust"}]
[null,null,null,null,null,null,null,null,"Royal Berkshire NHS Foundation Trust",1,{"$f":"IF(J295=1,COUNTIF($J$2:$J295,1),\"\")","v":294},{"$f":"IFERROR(INDEX($I$2:$I$381,MATCH(ROWS($K$2:$K295),$K$2:$K$381,0)),\"\")","v":"Royal Berkshire NHS Foundation Trust"}]
[null,null,null,null,null,null,null,null,"Royal Brompton and Harefield NHS Foundation Trust",1,{"$f":"IF(J296=1,COUNTIF($J$2:$J296,1),\"\")","v":295},{"$f":"IFERROR(INDEX($I$2:$I$381,MATCH(ROWS($K$2:$K296),$K$2:$K$381,0)),\"\")","v":"Royal Brompton and Harefield NHS Foundation Trust"}]
[null,null,null,null,null,null,null,null,"Royal Cornwall Hospitals NHS Trust",1,{"$f":"IF(J297=1,COUNTIF($J$2:$J297,1),\"\")","v":296},{"$f":"IFERROR(INDEX($I$2:$I$381,MATCH(ROWS($K$2:$K297),$K$2:$K$381,0)),\"\")","v":"Royal Cornwall Hospitals NHS Trust"}]
[null,null,null,null,null,null,null,null,"Royal Devon and Exeter NHS Foundation Trust",1,{"$f":"IF(J298=1,COUNTIF($J$2:$J298,1),\"\")","v":297},{"$f":"IFERROR(INDEX($I$2:$I$381,MATCH(ROWS($K$2:$K298),$K$2:$K$381,0)),\"\")","v":"Royal Devon and Exeter NHS Foundation Trust"}]
[null,null,null,null,null,null,null,null,"Royal Free London NHS Foundation Trust",1,{"$f":"IF(J299=1,COUNTIF($J$2:$J299,1),\"\")","v":298},{"$f":"IFERROR(INDEX($I$2:$I$381,MATCH(ROWS($K$2:$K299),$K$2:$K$381,0)),\"\")","v":"Royal Free London NHS Foundation Trust"}]
[null,null,null,null,null,null,null,null,"Royal National Orthopaedic Hospital NHS Trust",1,{"$f":"IF(J300=1,COUNTIF($J$2:$J300,1),\"\")","v":299},{"$f":"IFERROR(INDEX($I$2:$I$381,MATCH(ROWS($K$2:$K300),$K$2:$K$381,0)),\"\")","v":"Royal National Orthopaedic Hospital NHS Trust"}]
[null,null,null,null,null,null,null,null,"Royal Papworth Hospital NHS Foundation Trust",1,{"$f":"IF(J301=1,COUNTIF($J$2:$J301,1),\"\")","v":300},{"$f":"IFERROR(INDEX($I$2:$I$381,MATCH(ROWS($K$2:$K301),$K$2:$K$381,0)),\"\")","v":"Royal Papworth Hospital NHS Foundation Trust"}]
[null,null,null,null,null,null,null,null,"Royal Surrey NHS Foundation Trust",1,{"$f":"IF(J302=1,COUNTIF($J$2:$J302,1),\"\")","v":301},{"$f":"IFERROR(INDEX($I$2:$I$381,MATCH(ROWS($K$2:$K302),$K$2:$K$381,0)),\"\")","v":"Royal Surrey NHS Foundation Trust"}]
[null,null,null,null,null,null,null,null,"Royal United Hospitals Bath NHS Foundation Trust",1,{"$f":"IF(J303=1,COUNTIF($J$2:$J303,1),\"\")","v":302},{"$f":"IFERROR(INDEX($I$2:$I$381,MATCH(ROWS($K$2:$K303),$K$2:$K$381,0)),\"\")","v":"Royal United Hospitals Bath NHS Foundation Trust"}]
[null,null,null,null,null,null,null,null,"Salford Royal NHS Foundation Trust",1,{"$f":"IF(J304=1,COUNTIF($J$2:$J304,1),\"\")","v":303},{"$f":"IFERROR(INDEX($I$2:$I$381,MATCH(ROWS($K$2:$K304),$K$2:$K$381,0)),\"\")","v":"Salford Royal NHS Foundation Trust"}]
[null,null,null,null,null,null,null,null,"Salisbury NHS Foundation Trust",1,{"$f":"IF(J305=1,COUNTIF($J$2:$J305,1),\"\")","v":304},{"$f":"IFERROR(INDEX($I$2:$I$381,MATCH(ROWS($K$2:$K305),$K$2:$K$381,0)),\"\")","v":"Salisbury NHS Foundation Trust"}]
[null,null,null,null,null,null,null,null,"Sandwell and West Birmingham Hospitals NHS Trust",1,{"$f":"IF(J306=1,COUNTIF($J$2:$J306,1),\"\")","v":305},{"$f":"IFERROR(INDEX($I$2:$I$381,MATCH(ROWS($K$2:$K306),$K$2:$K$381,0)),\"\")","v":"Sandwell and West Birmingham Hospitals NHS Trust"}]
[null,null,null,null,null,null,null,null,"Services Hub For East Sussex Healthcare NHS Trust",1,{"$f":"IF(J307=1,COUNTIF($J$2:$J307,1),\"\")","v":306},{"$f":"IFERROR(INDEX($I$2:$I$381,MATCH(ROWS($K$2:$K307),$K$2:$K$381,0)),\"\")","v":"Services Hub For East Sussex Healthcare NHS Trust"}]
[null,null,null,null,null,null,null,null,"Sheffield Children's NHS Foundation Trust",1,{"$f":"IF(J308=1,COUNTIF($J$2:$J308,1),\"\")","v":307},{"$f":"IFERROR(INDEX($I$2:$I$381,MATCH(ROWS($K$2:$K308),$K$2:$K$381,0)),\"\")","v":"Sheffield Children's NHS Foundation Trust"}]
[null,null,null,null,null,null,null,null,"Sheffield Health and Social Care NHS Foundation Trust",1,{"$f":"IF(J309=1,COUNTIF($J$2:$J309,1),\"\")","v":308},{"$f":"IFERROR(INDEX($I$2:$I$381,MATCH(ROWS($K$2:$K309),$K$2:$K$381,0)),\"\")","v":"Sheffield Health and Social Care NHS Foundation Trust"}]
[null,null,null,null,null,null,null,null,"Sheffield Teaching Hospitals NHS Foundation Trust",1,{"$f":"IF(J310=1,COUNTIF($J$2:$J310,1),\"\")","v":309},{"$f":"IFERROR(INDEX($I$2:$I$381,MATCH(ROWS($K$2:$K310),$K$2:$K$381,0)),\"\")","v":"Sheffield Teaching Hospitals NHS Foundation Trust"}]
[null,null,null,null,null,null,null,null,"Sherwood Forest Hospitals NHS Foundation Trust",1,{"$f":"IF(J311=1,COUNTIF($J$2:$J311,1),\"\")","v":310},{"$f":"IFERROR(INDEX($I$2:$I$381,MATCH(ROWS($K$2:$K311),$K$2:$K$381,0)),\"\")","v":"Sherwood Forest Hospitals NHS Foundation Trust"}]
[null,null,null,null,null,null,null,null,"Shrewsbury and Telford Hospital NHS Trust",1,{"$f":"IF(J312=1,COUNTIF($J$2:$J312,1),\"\")","v":311},{"$f":"IFERROR(INDEX($I$2:$I$381,MATCH(ROWS($K$2:$K312),$K$2:$K$381,0)),\"\")","v":"Shrewsbury and Telford Hospital NHS Trust"}]
[null,null,null,null,null,null,null,null,"Shropshire Community Health NHS Trust",1,{"$f":"IF(J313=1,COUNTIF($J$2:$J313,1),\"\")","v":312},{"$f":"IFERROR(INDEX($I$2:$I$381,MATCH(ROWS($K$2:$K313),$K$2:$K$381,0)),\"\")","v":"Shropshire Community Health NHS Trust"}]
[null,null,null,null,null,null,null,null,"Solent NHS Trust",1,{"$f":"IF(J314=1,COUNTIF($J$2:$J314,1),\"\")","v":313},{"$f":"IFERROR(INDEX($I$2:$I$381,MATCH(ROWS($K$2:$K314),$K$2:$K$381,0)),\"\")","v":"Solent NHS Trust"}]
[null,null,null,null,null,null,null,null,"Somerset Partnership NHS Foundation Trust",1,{"$f":"IF(J315=1,COUNTIF($J$2:$J315,1),\"\")","v":314},{"$f":"IFERROR(INDEX($I$2:$I$381,MATCH(ROWS($K$2:$K315),$K$2:$K$381,0)),\"\")","v":"Somerset Partnership NHS Foundation Trust"}]
[null,null,null,null,null,null,null,null,"South Central Ambulance Service NHS Foundation Trust",1,{"$f":"IF(J316=1,COUNTIF($J$2:$J316,1),\"\")","v":315},{"$f":"IFERROR(INDEX($I$2:$I$381,MATCH(ROWS($K$2:$K316),$K$2:$K$381,0)),\"\")","v":"South Central Ambulance Service NHS Foundation Trust"}]
[null,null,null,null,null,null,null,null,"South East Coast Ambulance Service NHS Foundation Trust",1,{"$f":"IF(J317=1,COUNTIF($J$2:$J317,1),\"\")","v":316},{"$f":"IFERROR(INDEX($I$2:$I$381,MATCH(ROWS($K$2:$K317),$K$2:$K$381,0)),\"\")","v":"South East Coast Ambulance Service NHS Foundation Trust"}]
[null,null,null,null,null,null,null,null,"South London and Maudsley NHS Foundation Trust",1,{"$f":"IF(J318=1,COUNTIF($J$2:$J318,1),\"\")","v":317},{"$f":"IFERROR(INDEX($I$2:$I$381,MATCH(ROWS($K$2:$K318),$K$2:$K$381,0)),\"\")","v":"South London and Maudsley NHS Foundation Trust"}]
[null,null,null,null,null,null,null,null,"South Tees Hospitals NHS Foundation Trust",1,{"$f":"IF(J319=1,COUNTIF($J$2:$J319,1),\"\")","v":318},{"$f":"IFERROR(INDEX($I$2:$I$381,MATCH(ROWS($K$2:$K319),$K$2:$K$381,0)),\"\")","v":"South Tees Hospitals NHS Foundation Trust"}]
[null,null,null,null,null,null,null,null,"South Tyneside And Sunderland NHS Foundation Trust",1,{"$f":"IF(J320=1,COUNTIF($J$2:$J320,1),\"\")","v":319},{"$f":"IFERROR(INDEX($I$2:$I$381,MATCH(ROWS($K$2:$K320),$K$2:$K$381,0)),\"\")","v":"South Tyneside And Sunderland NHS Foundation Trust"}]
[null,null,null,null,null,null,null,null,"South Tyneside NHS Foundation Trust",1,{"$f":"IF(J321=1,COUNTIF($J$2:$J321,1),\"\")","v":320},{"$f":"IFERROR(INDEX($I$2:$I$381,MATCH(ROWS($K$2:$K321),$K$2:$K$381,0)),\"\")","v":"South Tyneside NHS Foundation Trust"}]
[null,null,null,null,null,null,null,null,"South Warwickshire NHS Foundation Trust",1,{"$f":"IF(J322=1,COUNTIF($J$2:$J322,1),\"\")","v":321},{"$f":"IFERROR(INDEX($I$2:$I$381,MATCH(ROWS($K$2:$K322),$K$2:$K$381,0)),\"\")","v":"South Warwickshire NHS Foundation Trust"}]
[null,null,null,null,null,null,null,null,"South West London and St George's Mental Health NHS Trust",{"$f":"--ISNUMBER(SEARCH($P$1,I323))","v":1},{"$f":"IF(J323=1,COUNTIF($J$2:$J323,1),\"\")","v":322},{"$f":"IFERROR(INDEX($I$2:$I$381,MATCH(ROWS($K$2:$K323),$K$2:$K$381,0)),\"\")","v":"South West London and St George's Mental Health NHS Trust"}]
[null,null,null,null,null,null,null,null,"South West Yorkshire Partnership NHS Foundation Trust",1,{"$f":"IF(J324=1,COUNTIF($J$2:$J324,1),\"\")","v":323},{"$f":"IFERROR(INDEX($I$2:$I$381,MATCH(ROWS($K$2:$K324),$K$2:$K$381,0)),\"\")","v":"South West Yorkshire Partnership NHS Foundation Trust"}]
[null,null,null,null,null,null,null,null,"South Western Ambulance Service NHS Foundation Trust",1,{"$f":"IF(J325=1,COUNTIF($J$2:$J325,1),\"\")","v":324},{"$f":"IFERROR(INDEX($I$2:$I$381,MATCH(ROWS($K$2:$K325),$K$2:$K$381,0)),\"\")","v":"South Western Ambulance Service NHS Foundation Trust"}]
[null,null,null,null,null,null,null,null,"Southern Health NHS Foundation Trust",1,{"$f":"IF(J326=1,COUNTIF($J$2:$J326,1),\"\")","v":325},{"$f":"IFERROR(INDEX($I$2:$I$381,MATCH(ROWS($K$2:$K326),$K$2:$K$381,0)),\"\")","v":"Southern Health NHS Foundation Trust"}]
[null,null,null,null,null,null,null,null,"Southport and Ormskirk Hospital NHS Trust",1,{"$f":"IF(J327=1,COUNTIF($J$2:$J327,1),\"\")","v":326},{"$f":"IFERROR(INDEX($I$2:$I$381,MATCH(ROWS($K$2:$K327),$K$2:$K$381,0)),\"\")","v":"Southport and Ormskirk Hospital NHS Trust"}]
[null,null,null,null,null,null,null,null,"St George's University Hospitals NHS Foundation Trust",1,{"$f":"IF(J328=1,COUNTIF($J$2:$J328,1),\"\")","v":327},{"$f":"IFERROR(INDEX($I$2:$I$381,MATCH(ROWS($K$2:$K328),$K$2:$K$381,0)),\"\")","v":"St George's University Hospitals NHS Foundation Trust"}]
[null,null,null,null,null,null,null,null,"St Helens and Knowsley Teaching Hospitals NHS Trust",1,{"$f":"IF(J329=1,COUNTIF($J$2:$J329,1),\"\")","v":328},{"$f":"IFERROR(INDEX($I$2:$I$381,MATCH(ROWS($K$2:$K329),$K$2:$K$381,0)),\"\")","v":"St Helens and Knowsley Teaching Hospitals NHS Trust"}]
[null,null,null,null,null,null,null,null,"Stockport NHS Foundation Trust",1,{"$f":"IF(J330=1,COUNTIF($J$2:$J330,1),\"\")","v":329},{"$f":"IFERROR(INDEX($I$2:$I$381,MATCH(ROWS($K$2:$K330),$K$2:$K$381,0)),\"\")","v":"Stockport NHS Foundation Trust"}]
[null,null,null,null,null,null,null,null,"Surrey and Borders Partnership NHS Foundation Trust",1,{"$f":"IF(J331=1,COUNTIF($J$2:$J331,1),\"\")","v":330},{"$f":"IFERROR(INDEX($I$2:$I$381,MATCH(ROWS($K$2:$K331),$K$2:$K$381,0)),\"\")","v":"Surrey and Borders Partnership NHS Foundation Trust"}]
[null,null,null,null,null,null,null,null,"Surrey and Sussex Healthcare NHS Trust",1,{"$f":"IF(J332=1,COUNTIF($J$2:$J332,1),\"\")","v":331},{"$f":"IFERROR(INDEX($I$2:$I$381,MATCH(ROWS($K$2:$K332),$K$2:$K$381,0)),\"\")","v":"Surrey and Sussex Healthcare NHS Trust"}]
[null,null,null,null,null,null,null,null,"Sussex Community NHS Foundation Trust",1,{"$f":"IF(J333=1,COUNTIF($J$2:$J333,1),\"\")","v":332},{"$f":"IFERROR(INDEX($I$2:$I$381,MATCH(ROWS($K$2:$K333),$K$2:$K$381,0)),\"\")","v":"Sussex Community NHS Foundation Trust"}]
[null,null,null,null,null,null,null,null,"Sussex Partnership NHS Foundation Trust",1,{"$f":"IF(J334=1,COUNTIF($J$2:$J334,1),\"\")","v":333},{"$f":"IFERROR(INDEX($I$2:$I$381,MATCH(ROWS($K$2:$K334),$K$2:$K$381,0)),\"\")","v":"Sussex Partnership NHS Foundation Trust"}]
[null,null,null,null,null,null,null,null,"TAMESIDE AND GLOSSOP INTEGRATED CARE NHS FOUNDATION TRUST",1,{"$f":"IF(J335=1,COUNTIF($J$2:$J335,1),\"\")","v":334},{"$f":"IFERROR(INDEX($I$2:$I$381,MATCH(ROWS($K$2:$K335),$K$2:$K$381,0)),\"\")","v":"TAMESIDE AND GLOSSOP INTEGRATED CARE NHS FOUNDATION TRUST"}]
[null,null,null,null,null,null,null,null,"Taunton and Somerset NHS Foundation Trust",1,{"$f":"IF(J336=1,COUNTIF($J$2:$J336,1),\"\")","v":335},{"$f":"IFERROR(INDEX($I$2:$I$381,MATCH(ROWS($K$2:$K336),$K$2:$K$381,0)),\"\")","v":"Taunton and Somerset NHS Foundation Trust"}]
[null,null,null,null,null,null,null,null,"Tavistock and Portman NHS Foundation Trust",1,{"$f":"IF(J337=1,COUNTIF($J$2:$J337,1),\"\")","v":336},{"$f":"IFERROR(INDEX($I$2:$I$381,MATCH(ROWS($K$2:$K337),$K$2:$K$381,0)),\"\")","v":"Tavistock and Portman NHS Foundation Trust"}]
[null,null,null,null,null,null,null,null,"Tees, Esk and Wear Valleys NHS Foundation Trust",1,{"$f":"IF(J338=1,COUNTIF($J$2:$J338,1),\"\")","v":337},{"$f":"IFERROR(INDEX($I$2:$I$381,MATCH(ROWS($K$2:$K338),$K$2:$K$381,0)),\"\")","v":"Tees, Esk and Wear Valleys NHS Foundation Trust"}]
[null,null,null,null,null,null,null,null,"The Christie NHS Foundation Trust",1,{"$f":"IF(J339=1,COUNTIF($J$2:$J339,1),\"\")","v":338},{"$f":"IFERROR(INDEX($I$2:$I$381,MATCH(ROWS($K$2:$K339),$K$2:$K$381,0)),\"\")","v":"The Christie NHS Foundation Trust"}]
[null,null,null,null,null,null,null,null,"The Clatterbridge Cancer Centre NHS Foundation Trust",1,{"$f":"IF(J340=1,COUNTIF($J$2:$J340,1),\"\")","v":339},{"$f":"IFERROR(INDEX($I$2:$I$381,MATCH(ROWS($K$2:$K340),$K$2:$K$381,0)),\"\")","v":"The Clatterbridge Cancer Centre NHS Foundation Trust"}]
[null,null,null,null,null,null,null,null,"The Dudley Group NHS Foundation Trust",1,{"$f":"IF(J341=1,COUNTIF($J$2:$J341,1),\"\")","v":340},{"$f":"IFERROR(INDEX($I$2:$I$381,MATCH(ROWS($K$2:$K341),$K$2:$K$381,0)),\"\")","v":"The Dudley Group NHS Foundation Trust"}]
[null,null,null,null,null,null,null,null,"The Hillingdon Hospitals NHS Foundation Trust",1,{"$f":"IF(J342=1,COUNTIF($J$2:$J342,1),\"\")","v":341},{"$f":"IFERROR(INDEX($I$2:$I$381,MATCH(ROWS($K$2:$K342),$K$2:$K$381,0)),\"\")","v":"The Hillingdon Hospitals NHS Foundation Trust"}]
[null,null,null,null,null,null,null,null,"The Newcastle Upon Tyne Hospitals NHS Foundation Trust",1,{"$f":"IF(J343=1,COUNTIF($J$2:$J343,1),\"\")","v":342},{"$f":"IFERROR(INDEX($I$2:$I$381,MATCH(ROWS($K$2:$K343),$K$2:$K$381,0)),\"\")","v":"The Newcastle Upon Tyne Hospitals NHS Foundation Trust"}]
[null,null,null,null,null,null,null,null,"The Princess Alexandra Hospital NHS Trust",1,{"$f":"IF(J344=1,COUNTIF($J$2:$J344,1),\"\")","v":343},{"$f":"IFERROR(INDEX($I$2:$I$381,MATCH(ROWS($K$2:$K344),$K$2:$K$381,0)),\"\")","v":"The Princess Alexandra Hospital NHS Trust"}]
[null,null,null,null,null,null,null,null,"The Queen Elizabeth Hospital, King's Lynn. NHS Foundation Trust",1,{"$f":"IF(J345=1,COUNTIF($J$2:$J345,1),\"\")","v":344},{"$f":"IFERROR(INDEX($I$2:$I$381,MATCH(ROWS($K$2:$K345),$K$2:$K$381,0)),\"\")","v":"The Queen Elizabeth Hospital, King's Lynn. NHS Foundation Trust"}]
[null,null,null,null,null,null,null,null,"The Rotherham NHS Foundation Trust",1,{"$f":"IF(J346=1,COUNTIF($J$2:$J346,1),\"\")","v":345},{"$f":"IFERROR(INDEX($I$2:$I$381,MATCH(ROWS($K$2:$K346),$K$2:$K$381,0)),\"\")","v":"The Rotherham NHS Foundation Trust"}]
[null,null,null,null,null,null,null,null,"The Royal Bournemouth and Christchurch Hospitals NHS Foundation Trust",1,{"$f":"IF(J347=1,COUNTIF($J$2:$J347,1),\"\")","v":346},{"$f":"IFERROR(INDEX($I$2:$I$381,MATCH(ROWS($K$2:$K347),$K$2:$K$381,0)),\"\")","v":"The Royal Bournemouth and Christchurch Hospitals NHS Foundation Trust"}]
[null,null,null,null,null,null,null,null,"The Royal Marsden NHS Foundation Trust",1,{"$f":"IF(J348=1,COUNTIF($J$2:$J348,1),\"\")","v":347},{"$f":"IFERROR(INDEX($I$2:$I$381,MATCH(ROWS($K$2:$K348),$K$2:$K$381,0)),\"\")","v":"The Royal Marsden NHS Foundation Trust"}]
[null,null,null,null,null,null,null,null,"The Royal Orthopaedic Hospital NHS Foundation Trust",1,{"$f":"IF(J349=1,COUNTIF($J$2:$J349,1),\"\")","v":348},{"$f":"IFERROR(INDEX($I$2:$I$381,MATCH(ROWS($K$2:$K349),$K$2:$K$381,0)),\"\")","v":"The Royal Orthopaedic Hospital NHS Foundation Trust"}]
[null,null,null,null,null,null,null,null,"The Royal Wolverhampton NHS Trust",1,{"$f":"IF(J350=1,COUNTIF($J$2:$J350,1),\"\")","v":349},{"$f":"IFERROR(INDEX($I$2:$I$381,MATCH(ROWS($K$2:$K350),$K$2:$K$381,0)),\"\")","v":"The Royal Wolverhampton NHS Trust"}]
[null,null,null,null,null,null,null,null,"The Walton Centre NHS Foundation Trust",1,{"$f":"IF(J351=1,COUNTIF($J$2:$J351,1),\"\")","v":350},{"$f":"IFERROR(INDEX($I$2:$I$381,MATCH(ROWS($K$2:$K351),$K$2:$K$381,0)),\"\")","v":"The Walton Centre NHS Foundation Trust"}]
[null,null,null,null,null,null,null,null,"Torbay and South Devon NHS Foundation Trust",1,{"$f":"IF(J352=1,COUNTIF($J$2:$J352,1),\"\")","v":351},{"$f":"IFERROR(INDEX($I$2:$I$381,MATCH(ROWS($K$2:$K352),$K$2:$K$381,0)),\"\")","v":"Torbay and South Devon NHS Foundation Trust"}]
[null,null,null,null,null,null,null,null,"United Lincolnshire Hospitals NHS Trust",1,{"$f":"IF(J353=1,COUNTIF($J$2:$J353,1),\"\")","v":352},{"$f":"IFERROR(INDEX($I$2:$I$381,MATCH(ROWS($K$2:$K353),$K$2:$K$381,0)),\"\")","v":"United Lincolnshire Hospitals NHS Trust"}]
[null,null,null,null,null,null,null,null,"University College London Hospitals NHS Foundation Trust",1,{"$f":"IF(J354=1,COUNTIF($J$2:$J354,1),\"\")","v":353},{"$f":"IFERROR(INDEX($I$2:$I$381,MATCH(ROWS($K$2:$K354),$K$2:$K$381,0)),\"\")","v":"University College London Hospitals NHS Foundation Trust"}]
[null,null,null,null,null,null,null,null,"University Hospital of Derby and Burton NHS Foundation Trust",1,{"$f":"IF(J355=1,COUNTIF($J$2:$J355,1),\"\")","v":354},{"$f":"IFERROR(INDEX($I$2:$I$381,MATCH(ROWS($K$2:$K355),$K$2:$K$381,0)),\"\")","v":"University Hospital of Derby and Burton NHS Foundation Trust"}]
[null,null,null,null,null,null,null,null,"University Hospital Southampton NHS Foundation Trust",1,{"$f":"IF(J356=1,COUNTIF($J$2:$J356,1),\"\")","v":355},{"$f":"IFERROR(INDEX($I$2:$I$381,MATCH(ROWS($K$2:$K356),$K$2:$K$381,0)),\"\")","v":"University Hospital Southampton NHS Foundation Trust"}]
[null,null,null,null,null,null,null,null,"University Hospitals Birmingham NHS Foundation Trust",1,{"$f":"IF(J357=1,COUNTIF($J$2:$J357,1),\"\")","v":356},{"$f":"IFERROR(INDEX($I$2:$I$381,MATCH(ROWS($K$2:$K357),$K$2:$K$381,0)),\"\")","v":"University Hospitals Birmingham NHS Foundation Trust"}]
[null,null,null,null,null,null,null,null,"University Hospitals Bristol and Weston NHS Foundation Trust",1,{"$f":"IF(J358=1,COUNTIF($J$2:$J358,1),\"\")","v":357},{"$f":"IFERROR(INDEX($I$2:$I$381,MATCH(ROWS($K$2:$K358),$K$2:$K$381,0)),\"\")","v":"University Hospitals Bristol and Weston NHS Foundation Trust"}]
[null,null,null,null,null,null,null,null,"University Hospitals Coventry and Warwickshire NHS Trust",1,{"$f":"IF(J359=1,COUNTIF($J$2:$J359,1),\"\")","v":358},{"$f":"IFERROR(INDEX($I$2:$I$381,MATCH(ROWS($K$2:$K359),$K$2:$K$381,0)),\"\")","v":"University Hospitals Coventry and Warwickshire NHS Trust"}]
[null,null,null,null,null,null,null,null,"University Hospitals Dorset NHS Foundation Trust",1,{"$f":"IF(J360=1,COUNTIF($J$2:$J360,1),\"\")","v":359},{"$f":"IFERROR(INDEX($I$2:$I$381,MATCH(ROWS($K$2:$K360),$K$2:$K$381,0)),\"\")","v":"University Hospitals Dorset NHS Foundation Trust"}]
[null,null,null,null,null,null,null,null,"University Hospitals Of Leicester NHS Trust",1,{"$f":"IF(J361=1,COUNTIF($J$2:$J361,1),\"\")","v":360},{"$f":"IFERROR(INDEX($I$2:$I$381,MATCH(ROWS($K$2:$K361),$K$2:$K$381,0)),\"\")","v":"University Hospitals Of Leicester NHS Trust"}]
[null,null,null,null,null,null,null,null,"University Hospitals Of Morecambe Bay NHS Foundation Trust",1,{"$f":"IF(J362=1,COUNTIF($J$2:$J362,1),\"\")","v":361},{"$f":"IFERROR(INDEX($I$2:$I$381,MATCH(ROWS($K$2:$K362),$K$2:$K$381,0)),\"\")","v":"University Hospitals Of Morecambe Bay NHS Foundation Trust"}]
[null,null,null,null,null,null,null,null,"University Hospitals of North Midlands",1,{"$f":"IF(J363=1,COUNTIF($J$2:$J363,1),\"\")","v":362},{"$f":"IFERROR(INDEX($I$2:$I$381,MATCH(ROWS($K$2:$K363),$K$2:$K$381,0)),\"\")","v":"University Hospitals of North Midlands"}]
[null,null,null,null,null,null,null,null,"University Hospitals Plymouth NHS Trust",1,{"$f":"IF(J364=1,COUNTIF($J$2:$J364,1),\"\")","v":363},{"$f":"IFERROR(INDEX($I$2:$I$381,MATCH(ROWS($K$2:$K364),$K$2:$K$381,0)),\"\")","v":"University Hospitals Plymouth NHS Trust"}]
[null,null,null,null,null,null,null,null,"University Hospitals Sussex NHS Foundation Trust",1,{"$f":"IF(J365=1,COUNTIF($J$2:$J365,1),\"\")","v":364},{"$f":"IFERROR(INDEX($I$2:$I$381,MATCH(ROWS($K$2:$K365),$K$2:$K$381,0)),\"\")","v":"University Hospitals Sussex NHS Foundation Trust"}]
[null,null,null,null,null,null,null,null,"Walsall Healthcare NHS Trust",1,{"$f":"IF(J366=1,COUNTIF($J$2:$J366,1),\"\")","v":365},{"$f":"IFERROR(INDEX($I$2:$I$381,MATCH(ROWS($K$2:$K366),$K$2:$K$381,0)),\"\")","v":"Walsall Healthcare NHS Trust"}]
[null,null,null,null,null,null,null,null,"Warrington and Halton Hospitals NHS Foundation Trust",1,{"$f":"IF(J367=1,COUNTIF($J$2:$J367,1),\"\")","v":366},{"$f":"IFERROR(INDEX($I$2:$I$381,MATCH(ROWS($K$2:$K367),$K$2:$K$381,0)),\"\")","v":"Warrington and Halton Hospitals NHS Foundation Trust"}]
[null,null,null,null,null,null,null,null,"West Hertfordshire Hospitals NHS Trust",1,{"$f":"IF(J368=1,COUNTIF($J$2:$J368,1),\"\")","v":367},{"$f":"IFERROR(INDEX($I$2:$I$381,MATCH(ROWS($K$2:$K368),$K$2:$K$381,0)),\"\")","v":"West Hertfordshire Hospitals NHS Trust"}]
[null,null,null,null,null,null,null,null,"West London NHS Trust",1,{"$f":"IF(J369=1,COUNTIF($J$2:$J369,1),\"\")","v":368},{"$f":"IFERROR(INDEX($I$2:$I$381,MATCH(ROWS($K$2:$K369),$K$2:$K$381,0)),\"\")","v":"West London NHS Trust"}]
[null,null,null,null,null,null,null,null,"West Midlands Ambulance Service University NHS Foundation Trust",1,{"$f":"IF(J370=1,COUNTIF($J$2:$J370,1),\"\")","v":369},{"$f":"IFERROR(INDEX($I$2:$I$381,MATCH(ROWS($K$2:$K370),$K$2:$K$381,0)),\"\")","v":"West Midlands Ambulance Service University NHS Foundation Trust"}]
[null,null,null,null,null,null,null,null,"West Suffolk NHS Foundation Trust",1,{"$f":"IF(J371=1,COUNTIF($J$2:$J371,1),\"\")","v":370},{"$f":"IFERROR(INDEX($I$2:$I$381,MATCH(ROWS($K$2:$K371),$K$2:$K$381,0)),\"\")","v":"West Suffolk NHS Foundation Trust"}]
[null,null,null,null,null,null,null,null,"Whittington Health NHS Trust",1,{"$f":"IF(J372=1,COUNTIF($J$2:$J372,1),\"\")","v":371},{"$f":"IFERROR(INDEX($I$2:$I$381,MATCH(ROWS($K$2:$K372),$K$2:$K$381,0)),\"\")","v":"Whittington Health NHS Trust"}]
[null,null,null,null,null,null,null,null,"WIRRAL COMMUNITY HEALTH AND CARE NHS FOUNDATION TRUST",1,{"$f":"IF(J373=1,COUNTIF($J$2:$J373,1),\"\")","v":372},{"$f":"IFERROR(INDEX($I$2:$I$381,MATCH(ROWS($K$2:$K373),$K$2:$K$381,0)),\"\")","v":"WIRRAL COMMUNITY HEALTH AND CARE NHS FOUNDATION TRUST"}]
[null,null,null,null,null,null,null,null,"Wirral University Teaching Hospital NHS Foundation Trust",1,{"$f":"IF(J374=1,COUNTIF($J$2:$J374,1),\"\")","v":373},{"$f":"IFERROR(INDEX($I$2:$I$381,MATCH(ROWS($K$2:$K374),$K$2:$K$381,0)),\"\")","v":"Wirral University Teaching Hospital NHS Foundation Trust"}]
[null,null,null,null,null,null,null,null,"Worcestershire Acute Hospitals NHS Trust",1,{"$f":"IF(J375=1,COUNTIF($J$2:$J375,1),\"\")","v":374},{"$f":"IFERROR(INDEX($I$2:$I$381,MATCH(ROWS($K$2:$K375),$K$2:$K$381,0)),\"\")","v":"Worcestershire Acute Hospitals NHS Trust"}]
[null,null,null,null,null,null,null,null,"Worcestershire Health and Care NHS Trust",1,{"$f":"IF(J376=1,COUNTIF($J$2:$J376,1),\"\")","v":375},{"$f":"IFERROR(INDEX($I$2:$I$381,MATCH(ROWS($K$2:$K376),$K$2:$K$381,0)),\"\")","v":"Worcestershire Health and Care NHS Trust"}]
[null,null,null,null,null,null,null,null,"Wrightington, Wigan and Leigh NHS Foundation Trust",1,{"$f":"IF(J377=1,COUNTIF($J$2:$J377,1),\"\")","v":376},{"$f":"IFERROR(INDEX($I$2:$I$381,MATCH(ROWS($K$2:$K377),$K$2:$K$381,0)),\"\")","v":"Wrightington, Wigan and Leigh NHS Foundation Trust"}]
[null,null,null,null,null,null,null,null,"Wye Valley NHS Trust",1,{"$f":"IF(J378=1,COUNTIF($J$2:$J378,1),\"\")","v":377},{"$f":"IFERROR(INDEX($I$2:$I$381,MATCH(ROWS($K$2:$K378),$K$2:$K$381,0)),\"\")","v":"Wye Valley NHS Trust"}]
[null,null,null,null,null,null,null,null,"Yeovil District Hospital NHS Foundation Trust",1,{"$f":"IF(J379=1,COUNTIF($J$2:$J379,1),\"\")","v":378},{"$f":"IFERROR(INDEX($I$2:$I$381,MATCH(ROWS($K$2:$K379),$K$2:$K$381,0)),\"\")","v":"Yeovil District Hospital NHS Foundation Trust"}]
[null,null,null,null,null,null,null,null,"York and Scarborough Teaching Hospitals NHS Foundation Trust",1,{"$f":"IF(J380=1,COUNTIF($J$2:$J380,1),\"\")","v":379},{"$f":"IFERROR(INDEX($I$2:$I$381,MATCH(ROWS($K$2:$K380),$K$2:$K$381,0)),\"\")","v":"York and Scarborough Teaching Hospitals NHS Foundation Trust"}]
[null,null,null,null,null,null,null,null,"Yorkshire Ambulance Service NHS Trust",1,{"$f":"IF(J381=1,COUNTIF($J$2:$J381,1),\"\")","v":380},{"$f":"IFERROR(INDEX($I$2:$I$381,MATCH(ROWS($K$2:$K381),$K$2:$K$381,0)),\"\")","v":"Yorkshire Ambulance Service NHS Trust"}]